{"text_format":"3","workbook":"xlsx","n_sheets":14,"sheets":["Consolidation","SysX.ch Pers.","SysX.ch Equip. ","SystX.ch Cons.","SystX.ch Misc","OC Pers."," OC Equip. & E.I.","OC Cons.","OC Misc","2nd Party Pers.","2nd Party Equip. & Cons. & Misc","3rd Party Pers.","3rd Party Equip. & Cons. & Misc","Tables"],"not_rendered":{"images":3,"defined_names":33,"comments":10},"read":"whole","date_system":"1900"}

{"sheet":"Consolidation","index":0,"n_rows":39,"n_cols":6,"rows_kept":39,"merged":[[0,1,0,4],[4,5,5,6],[16,5,16,6],[17,6,18,6],[19,6,20,6],[21,6,22,6],[24,5,24,6],[25,6,26,6],[27,6,28,6],[29,6,30,6],[32,5,32,6],[33,6,34,6],[35,6,36,6],[37,6,38,6]]}
[null,"Please fill out one reporting file per project and institution"]
[null,"MRD-Project - Financial Report 2017"]
[]
[null,"General Information:"]
[{"$nulls":4},"Project Title: "]
[null,"Institution"]
[]
[]
[null,"F&C Contact"]
[null,"Surname:",null,null,"Reporting period:"]
[null,"First Name:"]
[null,"Address:",null,null,"Your int.ref.:"]
[]
[{"$nulls":4},"SysX.ch int.ref.:"]
[null,"Phone:"]
[null,"E-Mail:"]
[{"$nulls":5},"Confirmation: Grant recipient / account holder at your institution"]
[]
[{"$nulls":5},"Place, date:"]
[null,"Total for whole project:","Year 2017 in CHF"]
[{"$nulls":5},"Name, First Name:"]
[null,"Total SystemsX.ch Funds:\n",{"$f":"'SysX.ch Pers.'!L191+'SystX.ch Misc'!I202+'SysX.ch Equip. '!$I$65+'SystX.ch Cons.'!I202","v":{"v":0,"d":"0.00"}}]
[{"$nulls":5},"Signature:"]
[null,"Total Own Contributions:\n",{"$f":"'OC Pers.'!L111+'OC Misc'!K202+' OC Equip. & E.I.'!K108+'OC Cons.'!K202","v":{"v":0,"d":"0.00"}}]
[{"$nulls":5},"Confirmation:  Finance Department"]
[null,"Total Second-Party Funds:",{"$f":"'2nd Party Pers.'!L31+'2nd Party Equip. & Cons. & Misc'!H22","v":{"v":0,"d":"0.00"}}]
[{"$nulls":5},"Place, date:"]
[null,"Total Third-Party Funds:",{"$f":"'3rd Party Pers.'!L31+'3rd Party Equip. & Cons. & Misc'!H22","v":{"v":0,"d":"0.00"}}]
[{"$nulls":5},"Name, First Name:"]
[null,"Total Funds whole Project:",{"$f":"C22+C24+C26+C28","v":{"v":0,"d":"0.00"}}]
[{"$nulls":5},"Signature:"]
[]
[{"$nulls":5},"Confirmation: Rector / president / dean (optional)"]
[]
[{"$nulls":5},"Place, date:"]
[]
[{"$nulls":5},"Name, First Name:"]
[]
[{"$nulls":5},"Signature:"]

{"sheet":"SysX.ch Pers.","index":1,"n_rows":191,"n_cols":13,"rows_kept":191,"merged":[[1,4,1,7],[2,0,2,2],[3,0,3,6]]}
[]
["SystemsX.ch Funds",null,null,"Project Titel:",{"$f":"Consolidation!F5","v":0}]
["Personnel",null,null,"SystX.ch int.ref.:",{"$f":"Consolidation!F14","v":0}]
["Please provide details for ALL personnel involved in the project paid with SystemsX.ch, and not simply totals per group"]
[]
[null,{"$f":"L191","v":0}]
["Project","Institution","Research Group","Funding Category","Cost Type","Name ","Internal Reference/ Personnel Number","Function (of the Personnel)","Base Salary / Cost 2017","% for SysX.ch  2017","Number of months employed","Total CHF 2017","Comments"]
[{"$f":"E2","v":0},null,null,"SystemsX.ch","Personnel",{"$nulls":6},{"$f":"I8*J8/12*K8","v":0}]
[{"$f":"A8","v":0},null,null,"SystemsX.ch","Personnel",{"$nulls":6},0]
[{"$f":"A9","v":0},null,null,"SystemsX.ch","Personnel",{"$nulls":6},0]
[0,null,null,"SystemsX.ch","Personnel",{"$nulls":6},{"$f":"I11*J11/12*K11","v":0}]
[0,null,null,"SystemsX.ch","Personnel",{"$nulls":6},0]
[0,null,null,"SystemsX.ch","Personnel",{"$nulls":6},0]
[0,null,null,"SystemsX.ch","Personnel",{"$nulls":6},0]
[0,null,null,"SystemsX.ch","Personnel",{"$nulls":6},0]
[0,null,null,"SystemsX.ch","Personnel",{"$nulls":6},0]
[0,null,null,"SystemsX.ch","Personnel",{"$nulls":6},0]
[0,null,null,"SystemsX.ch","Personnel",{"$nulls":6},0]
[0,null,null,"SystemsX.ch","Personnel",{"$nulls":6},0]
[0,null,null,"SystemsX.ch","Personnel",{"$nulls":6},0]
[0,null,null,"SystemsX.ch","Personnel",{"$nulls":6},0]
[0,null,null,"SystemsX.ch","Personnel",{"$nulls":6},0]
[0,null,null,"SystemsX.ch","Personnel",{"$nulls":6},0]
[0,null,null,"SystemsX.ch","Personnel",{"$nulls":6},0]
[0,null,null,"SystemsX.ch","Personnel",{"$nulls":6},0]
[0,null,null,"SystemsX.ch","Personnel",{"$nulls":6},0]
[0,null,null,"SystemsX.ch","Personnel",{"$nulls":6},0]
[0,null,null,"SystemsX.ch","Personnel",{"$nulls":6},0]
[0,null,null,"SystemsX.ch","Personnel",{"$nulls":6},0]
[0,null,null,"SystemsX.ch","Personnel",{"$nulls":6},0]
[0,null,null,"SystemsX.ch","Personnel",{"$nulls":6},0]
[0,null,null,"SystemsX.ch","Personnel",{"$nulls":6},0]
[0,null,null,"SystemsX.ch","Personnel",{"$nulls":6},0]
[0,null,null,"SystemsX.ch","Personnel",{"$nulls":6},0]
[0,null,null,"SystemsX.ch","Personnel",{"$nulls":6},0]
[0,null,null,"SystemsX.ch","Personnel",{"$nulls":6},0]
[0,null,null,"SystemsX.ch","Personnel",{"$nulls":6},0]
[0,null,null,"SystemsX.ch","Personnel",{"$nulls":6},0]
[0,null,null,"SystemsX.ch","Personnel",{"$nulls":6},0]
[0,null,null,"SystemsX.ch","Personnel",{"$nulls":6},0]
[0,null,null,"SystemsX.ch","Personnel",{"$nulls":6},0]
[0,null,null,"SystemsX.ch","Personnel",{"$nulls":6},0]
[0,null,null,"SystemsX.ch","Personnel",{"$nulls":6},0]
[0,null,null,"SystemsX.ch","Personnel",{"$nulls":6},0]
[0,null,null,"SystemsX.ch","Personnel",{"$nulls":6},0]
[0,null,null,"SystemsX.ch","Personnel",{"$nulls":6},0]
[0,null,null,"SystemsX.ch","Personnel",{"$nulls":6},0]
[0,null,null,"SystemsX.ch","Personnel",{"$nulls":6},0]
[0,null,null,"SystemsX.ch","Personnel",{"$nulls":6},0]
[0,null,null,"SystemsX.ch","Personnel",{"$nulls":6},0]
[0,null,null,"SystemsX.ch","Personnel",{"$nulls":6},0]
[0,null,null,"SystemsX.ch","Personnel",{"$nulls":6},0]
[0,null,null,"SystemsX.ch","Personnel",{"$nulls":6},0]
[0,null,null,"SystemsX.ch","Personnel",{"$nulls":6},0]
[0,null,null,"SystemsX.ch","Personnel",{"$nulls":6},0]
[0,null,null,"SystemsX.ch","Personnel",{"$nulls":6},0]
[0,null,null,"SystemsX.ch","Personnel",{"$nulls":6},0]
[0,null,null,"SystemsX.ch","Personnel",{"$nulls":6},0]
[0,null,null,"SystemsX.ch","Personnel",{"$nulls":6},0]
[0,null,null,"SystemsX.ch","Personnel",{"$nulls":6},0]
[0,null,null,"SystemsX.ch","Personnel",{"$nulls":6},0]
[0,null,null,"SystemsX.ch","Personnel",{"$nulls":6},0]
[0,null,null,"SystemsX.ch","Personnel",{"$nulls":6},0]
[0,null,null,"SystemsX.ch","Personnel",{"$nulls":6},0]
[0,null,null,"SystemsX.ch","Personnel",{"$nulls":6},0]
[0,null,null,"SystemsX.ch","Personnel",{"$nulls":6},0]
[0,null,null,"SystemsX.ch","Personnel",{"$nulls":6},0]
[0,null,null,"SystemsX.ch","Personnel",{"$nulls":6},0]
[0,null,null,"SystemsX.ch","Personnel",{"$nulls":6},0]
[0,null,null,"SystemsX.ch","Personnel",{"$nulls":6},0]
[0,null,null,"SystemsX.ch","Personnel",{"$nulls":6},0]
[0,null,null,"SystemsX.ch","Personnel",{"$nulls":6},0]
[0,null,null,"SystemsX.ch","Personnel",{"$nulls":6},{"$f":"I73*J73/12*K73","v":0}]
[{"$f":"A73","v":0},null,null,"SystemsX.ch","Personnel",{"$nulls":6},0]
[0,null,null,"SystemsX.ch","Personnel",{"$nulls":6},0]
[0,null,null,"SystemsX.ch","Personnel",{"$nulls":6},0]
[0,null,null,"SystemsX.ch","Personnel",{"$nulls":6},0]
[0,null,null,"SystemsX.ch","Personnel",{"$nulls":6},0]
[0,null,null,"SystemsX.ch","Personnel",{"$nulls":6},0]
[0,null,null,"SystemsX.ch","Personnel",{"$nulls":6},0]
[0,null,null,"SystemsX.ch","Personnel",{"$nulls":6},0]
[0,null,null,"SystemsX.ch","Personnel",{"$nulls":6},0]
[0,null,null,"SystemsX.ch","Personnel",{"$nulls":6},0]
[0,null,null,"SystemsX.ch","Personnel",{"$nulls":6},0]
[0,null,null,"SystemsX.ch","Personnel",{"$nulls":6},0]
[0,null,null,"SystemsX.ch","Personnel",{"$nulls":6},0]
[0,null,null,"SystemsX.ch","Personnel",{"$nulls":6},0]
[0,null,null,"SystemsX.ch","Personnel",{"$nulls":6},0]
[0,null,null,"SystemsX.ch","Personnel",{"$nulls":6},0]
[0,null,null,"SystemsX.ch","Personnel",{"$nulls":6},0]
[0,null,null,"SystemsX.ch","Personnel",{"$nulls":6},0]
[0,null,null,"SystemsX.ch","Personnel",{"$nulls":6},0]
[0,null,null,"SystemsX.ch","Personnel",{"$nulls":6},0]
[0,null,null,"SystemsX.ch","Personnel",{"$nulls":6},0]
[0,null,null,"SystemsX.ch","Personnel",{"$nulls":6},0]
[0,null,null,"SystemsX.ch","Personnel",{"$nulls":6},0]
[0,null,null,"SystemsX.ch","Personnel",{"$nulls":6},0]
[0,null,null,"SystemsX.ch","Personnel",{"$nulls":6},0]
[0,null,null,"SystemsX.ch","Personnel",{"$nulls":6},0]
[0,null,null,"SystemsX.ch","Personnel",{"$nulls":6},0]
[0,null,null,"SystemsX.ch","Personnel",{"$nulls":6},0]
[0,null,null,"SystemsX.ch","Personnel",{"$nulls":6},0]
[0,null,null,"SystemsX.ch","Personnel",{"$nulls":6},0]
[0,null,null,"SystemsX.ch","Personnel",{"$nulls":6},0]
[0,null,null,"SystemsX.ch","Personnel",{"$nulls":6},0]
[0,null,null,"SystemsX.ch","Personnel",{"$nulls":6},0]
[0,null,null,"SystemsX.ch","Personnel",{"$nulls":6},0]
[0,null,null,"SystemsX.ch","Personnel",{"$nulls":6},0]
[0,null,null,"SystemsX.ch","Personnel",{"$nulls":6},0]
[0,null,null,"SystemsX.ch","Personnel",{"$nulls":6},0]
[0,null,null,"SystemsX.ch","Personnel",{"$nulls":6},0]
[0,null,null,"SystemsX.ch","Personnel",{"$nulls":6},0]
[0,null,null,"SystemsX.ch","Personnel",{"$nulls":6},0]
[0,null,null,"SystemsX.ch","Personnel",{"$nulls":6},0]
[0,null,null,"SystemsX.ch","Personnel",{"$nulls":6},0]
[0,null,null,"SystemsX.ch","Personnel",{"$nulls":6},0]
[0,null,null,"SystemsX.ch","Personnel",{"$nulls":6},0]
[0,null,null,"SystemsX.ch","Personnel",{"$nulls":6},0]
[0,null,null,"SystemsX.ch","Personnel",{"$nulls":6},0]
[0,null,null,"SystemsX.ch","Personnel",{"$nulls":6},0]
[0,null,null,"SystemsX.ch","Personnel",{"$nulls":6},0]
[0,null,null,"SystemsX.ch","Personnel",{"$nulls":6},0]
[0,null,null,"SystemsX.ch","Personnel",{"$nulls":6},0]
[0,null,null,"SystemsX.ch","Personnel",{"$nulls":6},0]
[0,null,null,"SystemsX.ch","Personnel",{"$nulls":6},0]
[0,null,null,"SystemsX.ch","Personnel",{"$nulls":6},0]
[0,null,null,"SystemsX.ch","Personnel",{"$nulls":6},0]
[0,null,null,"SystemsX.ch","Personnel",{"$nulls":6},0]
[0,null,null,"SystemsX.ch","Personnel",{"$nulls":6},0]
[0,null,null,"SystemsX.ch","Personnel",{"$nulls":6},0]
[0,null,null,"SystemsX.ch","Personnel",{"$nulls":6},0]
[0,null,null,"SystemsX.ch","Personnel",{"$nulls":6},0]
[0,null,null,"SystemsX.ch","Personnel",{"$nulls":6},0]
[0,null,null,"SystemsX.ch","Personnel",{"$nulls":6},0]
[0,null,null,"SystemsX.ch","Personnel",{"$nulls":6},0]
[0,null,null,"SystemsX.ch","Personnel",{"$nulls":6},0]
[0,null,null,"SystemsX.ch","Personnel",{"$nulls":6},{"$f":"I137*J137/12*K137","v":0}]
[{"$f":"A137","v":0},null,null,"SystemsX.ch","Personnel",{"$nulls":6},0]
[0,null,null,"SystemsX.ch","Personnel",{"$nulls":6},0]
[0,null,null,"SystemsX.ch","Personnel",{"$nulls":6},0]
[0,null,null,"SystemsX.ch","Personnel",{"$nulls":6},0]
[0,null,null,"SystemsX.ch","Personnel",{"$nulls":6},0]
[0,null,null,"SystemsX.ch","Personnel",{"$nulls":6},0]
[0,null,null,"SystemsX.ch","Personnel",{"$nulls":6},0]
[0,null,null,"SystemsX.ch","Personnel",{"$nulls":6},0]
[0,null,null,"SystemsX.ch","Personnel",{"$nulls":6},0]
[0,null,null,"SystemsX.ch","Personnel",{"$nulls":6},0]
[0,null,null,"SystemsX.ch","Personnel",{"$nulls":6},0]
[0,null,null,"SystemsX.ch","Personnel",{"$nulls":6},0]
[0,null,null,"SystemsX.ch","Personnel",{"$nulls":6},0]
[0,null,null,"SystemsX.ch","Personnel",{"$nulls":6},0]
[0,null,null,"SystemsX.ch","Personnel",{"$nulls":6},0]
[0,null,null,"SystemsX.ch","Personnel",{"$nulls":6},0]
[0,null,null,"SystemsX.ch","Personnel",{"$nulls":6},0]
[0,null,null,"SystemsX.ch","Personnel",{"$nulls":6},0]
[0,null,null,"SystemsX.ch","Personnel",{"$nulls":6},0]
[0,null,null,"SystemsX.ch","Personnel",{"$nulls":6},0]
[0,null,null,"SystemsX.ch","Personnel",{"$nulls":6},0]
[0,null,null,"SystemsX.ch","Personnel",{"$nulls":6},0]
[0,null,null,"SystemsX.ch","Personnel",{"$nulls":6},0]
[0,null,null,"SystemsX.ch","Personnel",{"$nulls":6},0]
[0,null,null,"SystemsX.ch","Personnel",{"$nulls":6},0]
[0,null,null,"SystemsX.ch","Personnel",{"$nulls":6},0]
[0,null,null,"SystemsX.ch","Personnel",{"$nulls":6},0]
[0,null,null,"SystemsX.ch","Personnel",{"$nulls":6},0]
[0,null,null,"SystemsX.ch","Personnel",{"$nulls":6},0]
[0,null,null,"SystemsX.ch","Personnel",{"$nulls":6},0]
[0,null,null,"SystemsX.ch","Personnel",{"$nulls":6},0]
[0,null,null,"SystemsX.ch","Personnel",{"$nulls":6},0]
[0,null,null,"SystemsX.ch","Personnel",{"$nulls":6},0]
[0,null,null,"SystemsX.ch","Personnel",{"$nulls":6},0]
[0,null,null,"SystemsX.ch","Personnel",{"$nulls":6},0]
[0,null,null,"SystemsX.ch","Personnel",{"$nulls":6},0]
[0,null,null,"SystemsX.ch","Personnel",{"$nulls":6},0]
[0,null,null,"SystemsX.ch","Personnel",{"$nulls":6},0]
[0,null,null,"SystemsX.ch","Personnel",{"$nulls":6},0]
[0,null,null,"SystemsX.ch","Personnel",{"$nulls":6},0]
[0,null,null,"SystemsX.ch","Personnel",{"$nulls":6},0]
[0,null,null,"SystemsX.ch","Personnel",{"$nulls":6},0]
[0,null,null,"SystemsX.ch","Personnel",{"$nulls":6},0]
[{"$f":"A180","v":0},null,null,"SystemsX.ch","Personnel",{"$nulls":6},0]
[0,null,null,"SystemsX.ch","Personnel",{"$nulls":6},0]
[0,null,null,"SystemsX.ch","Personnel",{"$nulls":6},0]
[0,null,null,"SystemsX.ch","Personnel",{"$nulls":6},0]
[0,null,null,"SystemsX.ch","Personnel",{"$nulls":6},0]
[0,null,null,"SystemsX.ch","Personnel",{"$nulls":6},0]
[0,null,null,"SystemsX.ch","Personnel",{"$nulls":6},0]
[0,null,null,"SystemsX.ch","Personnel",{"$nulls":6},0]
[0,null,null,"SystemsX.ch","Personnel",{"$nulls":6},0]
[]
[{"$nulls":11},{"$f":"SUM(L8:L190)","v":0}]

{"sheet":"SysX.ch Equip. ","index":2,"n_rows":65,"n_cols":10,"rows_kept":65,"merged":[[1,4,1,6],[2,0,2,2],[3,0,3,6]]}
[]
["SystemsX.ch Funds",null,null,"Project Titel:",{"$f":"Consolidation!F5","v":0}]
["Equipment",null,null,"SystX.ch int.ref.:",{"$f":"Consolidation!F14","v":0}]
["Please provide all information per piece of equipment bought with SystemsX.ch Funds per research group."]
[]
[null,{"$f":"I65","v":{"v":0,"d":"0.00"}}]
["Project","Institution","Research Group","Funding Category","Cost Type","Description","Internal Reference","Purchase date","Total CHF 2017","Comments"]
[{"$f":"E2","v":0},null,null,"SystemsX.ch","Equipment"]
[{"$f":"A8","v":0},null,null,"SystemsX.ch","Equipment"]
[{"$f":"A9","v":0},null,null,"SystemsX.ch","Equipment"]
[0,null,null,"SystemsX.ch","Equipment"]
[0,null,null,"SystemsX.ch","Equipment"]
[0,null,null,"SystemsX.ch","Equipment"]
[0,null,null,"SystemsX.ch","Equipment"]
[0,null,null,"SystemsX.ch","Equipment"]
[0,null,null,"SystemsX.ch","Equipment"]
[0,null,null,"SystemsX.ch","Equipment"]
[0,null,null,"SystemsX.ch","Equipment"]
[0,null,null,"SystemsX.ch","Equipment"]
[0,null,null,"SystemsX.ch","Equipment"]
[0,null,null,"SystemsX.ch","Equipment"]
[0,null,null,"SystemsX.ch","Equipment"]
[0,null,null,"SystemsX.ch","Equipment"]
[0,null,null,"SystemsX.ch","Equipment"]
[0,null,null,"SystemsX.ch","Equipment"]
[0,null,null,"SystemsX.ch","Equipment"]
[0,null,null,"SystemsX.ch","Equipment"]
[0,null,null,"SystemsX.ch","Equipment"]
[0,null,null,"SystemsX.ch","Equipment"]
[0,null,null,"SystemsX.ch","Equipment"]
[0,null,null,"SystemsX.ch","Equipment"]
[0,null,null,"SystemsX.ch","Equipment"]
[0,null,null,"SystemsX.ch","Equipment"]
[0,null,null,"SystemsX.ch","Equipment"]
[0,null,null,"SystemsX.ch","Equipment"]
[0,null,null,"SystemsX.ch","Equipment"]
[0,null,null,"SystemsX.ch","Equipment"]
[0,null,null,"SystemsX.ch","Equipment"]
[0,null,null,"SystemsX.ch","Equipment"]
[0,null,null,"SystemsX.ch","Equipment"]
[0,null,null,"SystemsX.ch","Equipment"]
[0,null,null,"SystemsX.ch","Equipment"]
[0,null,null,"SystemsX.ch","Equipment"]
[0,null,null,"SystemsX.ch","Equipment"]
[0,null,null,"SystemsX.ch","Equipment"]
[0,null,null,"SystemsX.ch","Equipment"]
[0,null,null,"SystemsX.ch","Equipment"]
[0,null,null,"SystemsX.ch","Equipment"]
[0,null,null,"SystemsX.ch","Equipment"]
[0,null,null,"SystemsX.ch","Equipment"]
[0,null,null,"SystemsX.ch","Equipment"]
[0,null,null,"SystemsX.ch","Equipment"]
[0,null,null,"SystemsX.ch","Equipment"]
[0,null,null,"SystemsX.ch","Equipment"]
[0,null,null,"SystemsX.ch","Equipment"]
[0,null,null,"SystemsX.ch","Equipment"]
[0,null,null,"SystemsX.ch","Equipment"]
[0,null,null,"SystemsX.ch","Equipment"]
[0,null,null,"SystemsX.ch","Equipment"]
[0,null,null,"SystemsX.ch","Equipment"]
[0,null,null,"SystemsX.ch","Equipment"]
[0,null,null,"SystemsX.ch","Equipment"]
[0,null,null,"SystemsX.ch","Equipment"]
[]
[{"$nulls":8},{"$f":"SUM(I8:I63)","v":{"v":0,"d":"0.00"}}]

{"sheet":"SystX.ch Cons.","index":3,"n_rows":202,"n_cols":10,"rows_kept":202,"merged":[[1,4,1,6],[2,0,2,2],[3,0,3,16383]]}
[]
["SystemsX.ch Funds",null,null,"Project Titel:",{"$f":"Consolidation!F5","v":0}]
["Consumables",null,null,"SystX.ch int.ref.:",{"$f":"Consolidation!F14","v":0}]
["You may enter totals per FUNDING CATEGORY and RESEARCH GROUP, IF you submit the details as a separate Excel file. "]
[]
[null,{"$f":"I202","v":{"v":0,"d":"0.00"}}]
["Project","Institution","Research Group","Funding Category","Cost Type","Name / Description","Internal Reference","Purchase date","Total CHF 2017","Comments"]
[{"$f":"E2","v":0},null,null,"SystemsX.ch","Consumables"]
[{"$f":"A8","v":0},null,null,"SystemsX.ch","Consumables"]
[{"$f":"A9","v":0},null,null,"SystemsX.ch","Consumables"]
[0,null,null,"SystemsX.ch","Consumables"]
[0,null,null,"SystemsX.ch","Consumables"]
[0,null,null,"SystemsX.ch","Consumables"]
[0,null,null,"SystemsX.ch","Consumables"]
[0,null,null,"SystemsX.ch","Consumables"]
[0,null,null,"SystemsX.ch","Consumables"]
[0,null,null,"SystemsX.ch","Consumables"]
[0,null,null,"SystemsX.ch","Consumables"]
[0,null,null,"SystemsX.ch","Consumables"]
[0,null,null,"SystemsX.ch","Consumables"]
[0,null,null,"SystemsX.ch","Consumables"]
[0,null,null,"SystemsX.ch","Consumables"]
[0,null,null,"SystemsX.ch","Consumables"]
[0,null,null,"SystemsX.ch","Consumables"]
[0,null,null,"SystemsX.ch","Consumables"]
[0,null,null,"SystemsX.ch","Consumables"]
[0,null,null,"SystemsX.ch","Consumables"]
[0,null,null,"SystemsX.ch","Consumables"]
[0,null,null,"SystemsX.ch","Consumables"]
[0,null,null,"SystemsX.ch","Consumables"]
[0,null,null,"SystemsX.ch","Consumables"]
[0,null,null,"SystemsX.ch","Consumables"]
[0,null,null,"SystemsX.ch","Consumables"]
[0,null,null,"SystemsX.ch","Consumables"]
[0,null,null,"SystemsX.ch","Consumables"]
[0,null,null,"SystemsX.ch","Consumables"]
[0,null,null,"SystemsX.ch","Consumables"]
[0,null,null,"SystemsX.ch","Consumables"]
[0,null,null,"SystemsX.ch","Consumables"]
[0,null,null,"SystemsX.ch","Consumables"]
[0,null,null,"SystemsX.ch","Consumables"]
[0,null,null,"SystemsX.ch","Consumables"]
[0,null,null,"SystemsX.ch","Consumables"]
[0,null,null,"SystemsX.ch","Consumables"]
[0,null,null,"SystemsX.ch","Consumables"]
[0,null,null,"SystemsX.ch","Consumables"]
[0,null,null,"SystemsX.ch","Consumables"]
[0,null,null,"SystemsX.ch","Consumables"]
[0,null,null,"SystemsX.ch","Consumables"]
[0,null,null,"SystemsX.ch","Consumables"]
[0,null,null,"SystemsX.ch","Consumables"]
[0,null,null,"SystemsX.ch","Consumables"]
[0,null,null,"SystemsX.ch","Consumables"]
[0,null,null,"SystemsX.ch","Consumables"]
[0,null,null,"SystemsX.ch","Consumables"]
[0,null,null,"SystemsX.ch","Consumables"]
[0,null,null,"SystemsX.ch","Consumables"]
[0,null,null,"SystemsX.ch","Consumables"]
[0,null,null,"SystemsX.ch","Consumables"]
[0,null,null,"SystemsX.ch","Consumables"]
[0,null,null,"SystemsX.ch","Consumables"]
[0,null,null,"SystemsX.ch","Consumables"]
[0,null,null,"SystemsX.ch","Consumables"]
[0,null,null,"SystemsX.ch","Consumables"]
[0,null,null,"SystemsX.ch","Consumables"]
[0,null,null,"SystemsX.ch","Consumables"]
[0,null,null,"SystemsX.ch","Consumables"]
[0,null,null,"SystemsX.ch","Consumables"]
[0,null,null,"SystemsX.ch","Consumables"]
[0,null,null,"SystemsX.ch","Consumables"]
[0,null,null,"SystemsX.ch","Consumables"]
[0,null,null,"SystemsX.ch","Consumables"]
[0,null,null,"SystemsX.ch","Consumables"]
[{"$f":"A73","v":0},null,null,"SystemsX.ch","Consumables"]
[0,null,null,"SystemsX.ch","Consumables"]
[0,null,null,"SystemsX.ch","Consumables"]
[0,null,null,"SystemsX.ch","Consumables"]
[0,null,null,"SystemsX.ch","Consumables"]
[0,null,null,"SystemsX.ch","Consumables"]
[0,null,null,"SystemsX.ch","Consumables"]
[0,null,null,"SystemsX.ch","Consumables"]
[0,null,null,"SystemsX.ch","Consumables"]
[0,null,null,"SystemsX.ch","Consumables"]
[0,null,null,"SystemsX.ch","Consumables"]
[0,null,null,"SystemsX.ch","Consumables"]
[0,null,null,"SystemsX.ch","Consumables"]
[0,null,null,"SystemsX.ch","Consumables"]
[0,null,null,"SystemsX.ch","Consumables"]
[0,null,null,"SystemsX.ch","Consumables"]
[0,null,null,"SystemsX.ch","Consumables"]
[0,null,null,"SystemsX.ch","Consumables"]
[0,null,null,"SystemsX.ch","Consumables"]
[0,null,null,"SystemsX.ch","Consumables"]
[0,null,null,"SystemsX.ch","Consumables"]
[0,null,null,"SystemsX.ch","Consumables"]
[0,null,null,"SystemsX.ch","Consumables"]
[0,null,null,"SystemsX.ch","Consumables"]
[0,null,null,"SystemsX.ch","Consumables"]
[0,null,null,"SystemsX.ch","Consumables"]
[0,null,null,"SystemsX.ch","Consumables"]
[0,null,null,"SystemsX.ch","Consumables"]
[0,null,null,"SystemsX.ch","Consumables"]
[0,null,null,"SystemsX.ch","Consumables"]
[0,null,null,"SystemsX.ch","Consumables"]
[0,null,null,"SystemsX.ch","Consumables"]
[0,null,null,"SystemsX.ch","Consumables"]
[0,null,null,"SystemsX.ch","Consumables"]
[0,null,null,"SystemsX.ch","Consumables"]
[0,null,null,"SystemsX.ch","Consumables"]
[0,null,null,"SystemsX.ch","Consumables"]
[0,null,null,"SystemsX.ch","Consumables"]
[0,null,null,"SystemsX.ch","Consumables"]
[0,null,null,"SystemsX.ch","Consumables"]
[0,null,null,"SystemsX.ch","Consumables"]
[0,null,null,"SystemsX.ch","Consumables"]
[0,null,null,"SystemsX.ch","Consumables"]
[0,null,null,"SystemsX.ch","Consumables"]
[0,null,null,"SystemsX.ch","Consumables"]
[0,null,null,"SystemsX.ch","Consumables"]
[0,null,null,"SystemsX.ch","Consumables"]
[0,null,null,"SystemsX.ch","Consumables"]
[0,null,null,"SystemsX.ch","Consumables"]
[0,null,null,"SystemsX.ch","Consumables"]
[0,null,null,"SystemsX.ch","Consumables"]
[0,null,null,"SystemsX.ch","Consumables"]
[0,null,null,"SystemsX.ch","Consumables"]
[0,null,null,"SystemsX.ch","Consumables"]
[0,null,null,"SystemsX.ch","Consumables"]
[0,null,null,"SystemsX.ch","Consumables"]
[0,null,null,"SystemsX.ch","Consumables"]
[0,null,null,"SystemsX.ch","Consumables"]
[0,null,null,"SystemsX.ch","Consumables"]
[0,null,null,"SystemsX.ch","Consumables"]
[0,null,null,"SystemsX.ch","Consumables"]
[0,null,null,"SystemsX.ch","Consumables"]
[0,null,null,"SystemsX.ch","Consumables"]
[0,null,null,"SystemsX.ch","Consumables"]
[{"$f":"A137","v":0},null,null,"SystemsX.ch","Consumables"]
[0,null,null,"SystemsX.ch","Consumables"]
[0,null,null,"SystemsX.ch","Consumables"]
[0,null,null,"SystemsX.ch","Consumables"]
[0,null,null,"SystemsX.ch","Consumables"]
[0,null,null,"SystemsX.ch","Consumables"]
[0,null,null,"SystemsX.ch","Consumables"]
[0,null,null,"SystemsX.ch","Consumables"]
[0,null,null,"SystemsX.ch","Consumables"]
[0,null,null,"SystemsX.ch","Consumables"]
[0,null,null,"SystemsX.ch","Consumables"]
[0,null,null,"SystemsX.ch","Consumables"]
[0,null,null,"SystemsX.ch","Consumables"]
[0,null,null,"SystemsX.ch","Consumables"]
[0,null,null,"SystemsX.ch","Consumables"]
[0,null,null,"SystemsX.ch","Consumables"]
[0,null,null,"SystemsX.ch","Consumables"]
[0,null,null,"SystemsX.ch","Consumables"]
[0,null,null,"SystemsX.ch","Consumables"]
[0,null,null,"SystemsX.ch","Consumables"]
[0,null,null,"SystemsX.ch","Consumables"]
[0,null,null,"SystemsX.ch","Consumables"]
[0,null,null,"SystemsX.ch","Consumables"]
[0,null,null,"SystemsX.ch","Consumables"]
[0,null,null,"SystemsX.ch","Consumables"]
[0,null,null,"SystemsX.ch","Consumables"]
[0,null,null,"SystemsX.ch","Consumables"]
[0,null,null,"SystemsX.ch","Consumables"]
[0,null,null,"SystemsX.ch","Consumables"]
[0,null,null,"SystemsX.ch","Consumables"]
[0,null,null,"SystemsX.ch","Consumables"]
[0,null,null,"SystemsX.ch","Consumables"]
[0,null,null,"SystemsX.ch","Consumables"]
[0,null,null,"SystemsX.ch","Consumables"]
[0,null,null,"SystemsX.ch","Consumables"]
[0,null,null,"SystemsX.ch","Consumables"]
[0,null,null,"SystemsX.ch","Consumables"]
[0,null,null,"SystemsX.ch","Consumables"]
[0,null,null,"SystemsX.ch","Consumables"]
[0,null,null,"SystemsX.ch","Consumables"]
[0,null,null,"SystemsX.ch","Consumables"]
[0,null,null,"SystemsX.ch","Consumables"]
[0,null,null,"SystemsX.ch","Consumables"]
[0,null,null,"SystemsX.ch","Consumables"]
[0,null,null,"SystemsX.ch","Consumables"]
[0,null,null,"SystemsX.ch","Consumables"]
[0,null,null,"SystemsX.ch","Consumables"]
[0,null,null,"SystemsX.ch","Consumables"]
[0,null,null,"SystemsX.ch","Consumables"]
[0,null,null,"SystemsX.ch","Consumables"]
[0,null,null,"SystemsX.ch","Consumables"]
[0,null,null,"SystemsX.ch","Consumables"]
[0,null,null,"SystemsX.ch","Consumables"]
[0,null,null,"SystemsX.ch","Consumables"]
[0,null,null,"SystemsX.ch","Consumables"]
[0,null,null,"SystemsX.ch","Consumables"]
[0,null,null,"SystemsX.ch","Consumables"]
[0,null,null,"SystemsX.ch","Consumables"]
[0,null,null,"SystemsX.ch","Consumables"]
[0,null,null,"SystemsX.ch","Consumables"]
[0,null,null,"SystemsX.ch","Consumables"]
[0,null,null,"SystemsX.ch","Consumables"]
[0,null,null,"SystemsX.ch","Consumables"]
[]
[{"$nulls":8},{"$f":"SUM(I8:I200)","v":{"v":0,"d":"0.00"}}]

{"sheet":"SystX.ch Misc","index":4,"n_rows":202,"n_cols":10,"rows_kept":202,"merged":[[1,4,1,6],[2,0,2,2],[3,0,3,16383]]}
[]
["SystemsX.ch Funds",null,null,"Project Titel:",{"$f":"Consolidation!F5","v":0}]
["Miscellaneous",null,null,"SystX.ch int.ref.:",{"$f":"Consolidation!F14","v":0}]
["You may enter totals per FUNDING CATEGORY and RESEARCH GROUP, IF you submit the details as a separate Excel file. "]
[]
[null,{"$f":"I202","v":{"v":0,"d":"0.00"}}]
["Project","Institution","Research Group","Funding Category","Cost Type","Name / Description","Internal Reference","Purchase date","Total CHF 2017","Comments"]
[{"$f":"E2","v":0},null,null,"SystemsX.ch","Miscellaneous"]
[{"$f":"A8","v":0},null,null,"SystemsX.ch","Miscellaneous"]
[{"$f":"A9","v":0},null,null,"SystemsX.ch","Miscellaneous"]
[0,null,null,"SystemsX.ch","Miscellaneous"]
[0,null,null,"SystemsX.ch","Miscellaneous"]
[0,null,null,"SystemsX.ch","Miscellaneous"]
[0,null,null,"SystemsX.ch","Miscellaneous"]
[0,null,null,"SystemsX.ch","Miscellaneous"]
[0,null,null,"SystemsX.ch","Miscellaneous"]
[0,null,null,"SystemsX.ch","Miscellaneous"]
[0,null,null,"SystemsX.ch","Miscellaneous"]
[0,null,null,"SystemsX.ch","Miscellaneous"]
[0,null,null,"SystemsX.ch","Miscellaneous"]
[0,null,null,"SystemsX.ch","Miscellaneous"]
[0,null,null,"SystemsX.ch","Miscellaneous"]
[0,null,null,"SystemsX.ch","Miscellaneous"]
[0,null,null,"SystemsX.ch","Miscellaneous"]
[0,null,null,"SystemsX.ch","Miscellaneous"]
[0,null,null,"SystemsX.ch","Miscellaneous"]
[0,null,null,"SystemsX.ch","Miscellaneous"]
[0,null,null,"SystemsX.ch","Miscellaneous"]
[0,null,null,"SystemsX.ch","Miscellaneous"]
[0,null,null,"SystemsX.ch","Miscellaneous"]
[0,null,null,"SystemsX.ch","Miscellaneous"]
[0,null,null,"SystemsX.ch","Miscellaneous"]
[0,null,null,"SystemsX.ch","Miscellaneous"]
[0,null,null,"SystemsX.ch","Miscellaneous"]
[0,null,null,"SystemsX.ch","Miscellaneous"]
[0,null,null,"SystemsX.ch","Miscellaneous"]
[0,null,null,"SystemsX.ch","Miscellaneous"]
[0,null,null,"SystemsX.ch","Miscellaneous"]
[0,null,null,"SystemsX.ch","Miscellaneous"]
[0,null,null,"SystemsX.ch","Miscellaneous"]
[0,null,null,"SystemsX.ch","Miscellaneous"]
[0,null,null,"SystemsX.ch","Miscellaneous"]
[0,null,null,"SystemsX.ch","Miscellaneous"]
[0,null,null,"SystemsX.ch","Miscellaneous"]
[0,null,null,"SystemsX.ch","Miscellaneous"]
[0,null,null,"SystemsX.ch","Miscellaneous"]
[0,null,null,"SystemsX.ch","Miscellaneous"]
[0,null,null,"SystemsX.ch","Miscellaneous"]
[0,null,null,"SystemsX.ch","Miscellaneous"]
[0,null,null,"SystemsX.ch","Miscellaneous"]
[0,null,null,"SystemsX.ch","Miscellaneous"]
[0,null,null,"SystemsX.ch","Miscellaneous"]
[0,null,null,"SystemsX.ch","Miscellaneous"]
[0,null,null,"SystemsX.ch","Miscellaneous"]
[0,null,null,"SystemsX.ch","Miscellaneous"]
[0,null,null,"SystemsX.ch","Miscellaneous"]
[0,null,null,"SystemsX.ch","Miscellaneous"]
[0,null,null,"SystemsX.ch","Miscellaneous"]
[0,null,null,"SystemsX.ch","Miscellaneous"]
[0,null,null,"SystemsX.ch","Miscellaneous"]
[0,null,null,"SystemsX.ch","Miscellaneous"]
[0,null,null,"SystemsX.ch","Miscellaneous"]
[0,null,null,"SystemsX.ch","Miscellaneous"]
[0,null,null,"SystemsX.ch","Miscellaneous"]
[0,null,null,"SystemsX.ch","Miscellaneous"]
[0,null,null,"SystemsX.ch","Miscellaneous"]
[0,null,null,"SystemsX.ch","Miscellaneous"]
[0,null,null,"SystemsX.ch","Miscellaneous"]
[0,null,null,"SystemsX.ch","Miscellaneous"]
[0,null,null,"SystemsX.ch","Miscellaneous"]
[0,null,null,"SystemsX.ch","Miscellaneous"]
[0,null,null,"SystemsX.ch","Miscellaneous"]
[0,null,null,"SystemsX.ch","Miscellaneous"]
[{"$f":"A73","v":0},null,null,"SystemsX.ch","Miscellaneous"]
[0,null,null,"SystemsX.ch","Miscellaneous"]
[0,null,null,"SystemsX.ch","Miscellaneous"]
[0,null,null,"SystemsX.ch","Miscellaneous"]
[0,null,null,"SystemsX.ch","Miscellaneous"]
[0,null,null,"SystemsX.ch","Miscellaneous"]
[0,null,null,"SystemsX.ch","Miscellaneous"]
[0,null,null,"SystemsX.ch","Miscellaneous"]
[0,null,null,"SystemsX.ch","Miscellaneous"]
[0,null,null,"SystemsX.ch","Miscellaneous"]
[0,null,null,"SystemsX.ch","Miscellaneous"]
[0,null,null,"SystemsX.ch","Miscellaneous"]
[0,null,null,"SystemsX.ch","Miscellaneous"]
[0,null,null,"SystemsX.ch","Miscellaneous"]
[0,null,null,"SystemsX.ch","Miscellaneous"]
[0,null,null,"SystemsX.ch","Miscellaneous"]
[0,null,null,"SystemsX.ch","Miscellaneous"]
[0,null,null,"SystemsX.ch","Miscellaneous"]
[0,null,null,"SystemsX.ch","Miscellaneous"]
[0,null,null,"SystemsX.ch","Miscellaneous"]
[0,null,null,"SystemsX.ch","Miscellaneous"]
[0,null,null,"SystemsX.ch","Miscellaneous"]
[0,null,null,"SystemsX.ch","Miscellaneous"]
[0,null,null,"SystemsX.ch","Miscellaneous"]
[0,null,null,"SystemsX.ch","Miscellaneous"]
[0,null,null,"SystemsX.ch","Miscellaneous"]
[0,null,null,"SystemsX.ch","Miscellaneous"]
[0,null,null,"SystemsX.ch","Miscellaneous"]
[0,null,null,"SystemsX.ch","Miscellaneous"]
[0,null,null,"SystemsX.ch","Miscellaneous"]
[0,null,null,"SystemsX.ch","Miscellaneous"]
[0,null,null,"SystemsX.ch","Miscellaneous"]
[0,null,null,"SystemsX.ch","Miscellaneous"]
[0,null,null,"SystemsX.ch","Miscellaneous"]
[0,null,null,"SystemsX.ch","Miscellaneous"]
[0,null,null,"SystemsX.ch","Miscellaneous"]
[0,null,null,"SystemsX.ch","Miscellaneous"]
[0,null,null,"SystemsX.ch","Miscellaneous"]
[0,null,null,"SystemsX.ch","Miscellaneous"]
[0,null,null,"SystemsX.ch","Miscellaneous"]
[0,null,null,"SystemsX.ch","Miscellaneous"]
[0,null,null,"SystemsX.ch","Miscellaneous"]
[0,null,null,"SystemsX.ch","Miscellaneous"]
[0,null,null,"SystemsX.ch","Miscellaneous"]
[0,null,null,"SystemsX.ch","Miscellaneous"]
[0,null,null,"SystemsX.ch","Miscellaneous"]
[0,null,null,"SystemsX.ch","Miscellaneous"]
[0,null,null,"SystemsX.ch","Miscellaneous"]
[0,null,null,"SystemsX.ch","Miscellaneous"]
[0,null,null,"SystemsX.ch","Miscellaneous"]
[0,null,null,"SystemsX.ch","Miscellaneous"]
[0,null,null,"SystemsX.ch","Miscellaneous"]
[0,null,null,"SystemsX.ch","Miscellaneous"]
[0,null,null,"SystemsX.ch","Miscellaneous"]
[0,null,null,"SystemsX.ch","Miscellaneous"]
[0,null,null,"SystemsX.ch","Miscellaneous"]
[0,null,null,"SystemsX.ch","Miscellaneous"]
[0,null,null,"SystemsX.ch","Miscellaneous"]
[0,null,null,"SystemsX.ch","Miscellaneous"]
[0,null,null,"SystemsX.ch","Miscellaneous"]
[0,null,null,"SystemsX.ch","Miscellaneous"]
[0,null,null,"SystemsX.ch","Miscellaneous"]
[0,null,null,"SystemsX.ch","Miscellaneous"]
[0,null,null,"SystemsX.ch","Miscellaneous"]
[{"$f":"A137","v":0},null,null,"SystemsX.ch","Miscellaneous"]
[0,null,null,"SystemsX.ch","Miscellaneous"]
[0,null,null,"SystemsX.ch","Miscellaneous"]
[0,null,null,"SystemsX.ch","Miscellaneous"]
[0,null,null,"SystemsX.ch","Miscellaneous"]
[0,null,null,"SystemsX.ch","Miscellaneous"]
[0,null,null,"SystemsX.ch","Miscellaneous"]
[0,null,null,"SystemsX.ch","Miscellaneous"]
[0,null,null,"SystemsX.ch","Miscellaneous"]
[0,null,null,"SystemsX.ch","Miscellaneous"]
[0,null,null,"SystemsX.ch","Miscellaneous"]
[0,null,null,"SystemsX.ch","Miscellaneous"]
[0,null,null,"SystemsX.ch","Miscellaneous"]
[0,null,null,"SystemsX.ch","Miscellaneous"]
[0,null,null,"SystemsX.ch","Miscellaneous"]
[0,null,null,"SystemsX.ch","Miscellaneous"]
[0,null,null,"SystemsX.ch","Miscellaneous"]
[0,null,null,"SystemsX.ch","Miscellaneous"]
[0,null,null,"SystemsX.ch","Miscellaneous"]
[0,null,null,"SystemsX.ch","Miscellaneous"]
[0,null,null,"SystemsX.ch","Miscellaneous"]
[0,null,null,"SystemsX.ch","Miscellaneous"]
[0,null,null,"SystemsX.ch","Miscellaneous"]
[0,null,null,"SystemsX.ch","Miscellaneous"]
[0,null,null,"SystemsX.ch","Miscellaneous"]
[0,null,null,"SystemsX.ch","Miscellaneous"]
[0,null,null,"SystemsX.ch","Miscellaneous"]
[0,null,null,"SystemsX.ch","Miscellaneous"]
[0,null,null,"SystemsX.ch","Miscellaneous"]
[0,null,null,"SystemsX.ch","Miscellaneous"]
[0,null,null,"SystemsX.ch","Miscellaneous"]
[0,null,null,"SystemsX.ch","Miscellaneous"]
[0,null,null,"SystemsX.ch","Miscellaneous"]
[0,null,null,"SystemsX.ch","Miscellaneous"]
[0,null,null,"SystemsX.ch","Miscellaneous"]
[0,null,null,"SystemsX.ch","Miscellaneous"]
[0,null,null,"SystemsX.ch","Miscellaneous"]
[0,null,null,"SystemsX.ch","Miscellaneous"]
[0,null,null,"SystemsX.ch","Miscellaneous"]
[0,null,null,"SystemsX.ch","Miscellaneous"]
[0,null,null,"SystemsX.ch","Miscellaneous"]
[0,null,null,"SystemsX.ch","Miscellaneous"]
[0,null,null,"SystemsX.ch","Miscellaneous"]
[0,null,null,"SystemsX.ch","Miscellaneous"]
[0,null,null,"SystemsX.ch","Miscellaneous"]
[0,null,null,"SystemsX.ch","Miscellaneous"]
[0,null,null,"SystemsX.ch","Miscellaneous"]
[0,null,null,"SystemsX.ch","Miscellaneous"]
[0,null,null,"SystemsX.ch","Miscellaneous"]
[0,null,null,"SystemsX.ch","Miscellaneous"]
[0,null,null,"SystemsX.ch","Miscellaneous"]
[0,null,null,"SystemsX.ch","Miscellaneous"]
[0,null,null,"SystemsX.ch","Miscellaneous"]
[0,null,null,"SystemsX.ch","Miscellaneous"]
[0,null,null,"SystemsX.ch","Miscellaneous"]
[0,null,null,"SystemsX.ch","Miscellaneous"]
[{"$f":"A193","v":0},null,null,"SystemsX.ch","Miscellaneous"]
[0,null,null,"SystemsX.ch","Miscellaneous"]
[0,null,null,"SystemsX.ch","Miscellaneous"]
[0,null,null,"SystemsX.ch","Miscellaneous"]
[0,null,null,"SystemsX.ch","Miscellaneous"]
[0,null,null,"SystemsX.ch","Miscellaneous"]
[0,null,null,"SystemsX.ch","Miscellaneous"]
[]
[{"$nulls":8},{"$f":"SUM(I8:I200)","v":{"v":0,"d":"0.00"}}]

{"sheet":"OC Pers.","index":5,"n_rows":111,"n_cols":13,"rows_kept":111,"merged":[[1,4,1,10],[2,0,2,1],[3,0,3,7]]}
[]
["Own Contribution",null,null,"Project Titel:",{"$f":"Consolidation!F5","v":0}]
["Personnel",null,null,"SystX.ch int.ref.:",{"$f":"Consolidation!F14","v":0}]
["Please provide information for ALL personnel involved in the project paid with institutional funds and not simply totals per group"]
[null,{"$f":"L111","v":{"v":0,"d":"0.00"}}]
["Project","Institution","Research Group","Funding Category","Cost Type","Name ","Internal Reference/\nPersonnel Number","Function (only Personnel)","% Year 2017","CHF 2017","Number of months employed","Total CHF  2017","Comments"]
[{"$f":"E2","v":0},null,null,"Own Contributions","Personnel",{"$nulls":3},{"$f":"IF(D7=\"\",0,IF(D7=\"Own Contributions\",\"0\",\"\"))","v":"0"},{"$f":"IF(H7=\"\",0,(VLOOKUP(H7,Tables!$A$2:$B$9,2,FALSE))*I7)","v":{"v":0,"d":"0.00"}},null,{"$f":"J7/12*K7","v":{"v":0,"d":"0.00"}}]
[{"$f":"A7","v":0},null,null,"Own Contributions","Personnel",{"$nulls":3},"0",{"$f":"IF(H8=\"\",0,(VLOOKUP(H8,Tables!$A$2:$B$9,2,FALSE))*I8)","v":{"v":0,"d":"0.00"}},null,{"$f":"J8/12*K8","v":{"v":0,"d":"0.00"}}]
[{"$f":"A8","v":0},null,null,"Own Contributions","Personnel",{"$nulls":3},"0",{"$f":"IF(H9=\"\",0,(VLOOKUP(H9,Tables!$A$2:$B$9,2,FALSE))*I9)","v":{"v":0,"d":"0.00"}},null,{"v":0,"d":"0.00"}]
[{"$f":"A9","v":0},null,null,"Own Contributions","Personnel",{"$nulls":3},"0",{"$f":"IF(H10=\"\",0,(VLOOKUP(H10,Tables!$A$2:$B$9,2,FALSE))*I10)","v":{"v":0,"d":"0.00"}},null,{"v":0,"d":"0.00"}]
[0,null,null,"Own Contributions","Personnel",{"$nulls":3},"0",{"$f":"IF(H11=\"\",0,(VLOOKUP(H11,Tables!$A$2:$B$9,2,FALSE))*I11)","v":{"v":0,"d":"0.00"}},null,{"v":0,"d":"0.00"}]
[0,null,null,"Own Contributions","Personnel",{"$nulls":3},"0",{"$f":"IF(H12=\"\",0,(VLOOKUP(H12,Tables!$A$2:$B$9,2,FALSE))*I12)","v":{"v":0,"d":"0.00"}},null,{"v":0,"d":"0.00"}]
[0,null,null,"Own Contributions","Personnel",{"$nulls":3},"0",{"$f":"IF(H13=\"\",0,(VLOOKUP(H13,Tables!$A$2:$B$9,2,FALSE))*I13)","v":{"v":0,"d":"0.00"}},null,{"v":0,"d":"0.00"}]
[0,null,null,"Own Contributions","Personnel",{"$nulls":3},"0",{"$f":"IF(H14=\"\",0,(VLOOKUP(H14,Tables!$A$2:$B$9,2,FALSE))*I14)","v":{"v":0,"d":"0.00"}},null,{"v":0,"d":"0.00"}]
[0,null,null,"Own Contributions","Personnel",{"$nulls":3},"0",{"$f":"IF(H15=\"\",0,(VLOOKUP(H15,Tables!$A$2:$B$9,2,FALSE))*I15)","v":{"v":0,"d":"0.00"}},null,{"v":0,"d":"0.00"}]
[0,null,null,"Own Contributions","Personnel",{"$nulls":3},"0",{"$f":"IF(H16=\"\",0,(VLOOKUP(H16,Tables!$A$2:$B$9,2,FALSE))*I16)","v":{"v":0,"d":"0.00"}},null,{"v":0,"d":"0.00"}]
[0,null,null,"Own Contributions","Personnel",{"$nulls":3},"0",{"$f":"IF(H17=\"\",0,(VLOOKUP(H17,Tables!$A$2:$B$9,2,FALSE))*I17)","v":{"v":0,"d":"0.00"}},null,{"v":0,"d":"0.00"}]
[0,null,null,"Own Contributions","Personnel",{"$nulls":3},"0",{"$f":"IF(H18=\"\",0,(VLOOKUP(H18,Tables!$A$2:$B$9,2,FALSE))*I18)","v":{"v":0,"d":"0.00"}},null,{"v":0,"d":"0.00"}]
[0,null,null,"Own Contributions","Personnel",{"$nulls":3},"0",{"$f":"IF(H19=\"\",0,(VLOOKUP(H19,Tables!$A$2:$B$9,2,FALSE))*I19)","v":{"v":0,"d":"0.00"}},null,{"v":0,"d":"0.00"}]
[0,null,null,"Own Contributions","Personnel",{"$nulls":3},"0",{"$f":"IF(H20=\"\",0,(VLOOKUP(H20,Tables!$A$2:$B$9,2,FALSE))*I20)","v":{"v":0,"d":"0.00"}},null,{"v":0,"d":"0.00"}]
[0,null,null,"Own Contributions","Personnel",{"$nulls":3},"0",{"$f":"IF(H21=\"\",0,(VLOOKUP(H21,Tables!$A$2:$B$9,2,FALSE))*I21)","v":{"v":0,"d":"0.00"}},null,{"v":0,"d":"0.00"}]
[0,null,null,"Own Contributions","Personnel",{"$nulls":3},"0",{"$f":"IF(H22=\"\",0,(VLOOKUP(H22,Tables!$A$2:$B$9,2,FALSE))*I22)","v":{"v":0,"d":"0.00"}},null,{"v":0,"d":"0.00"}]
[0,null,null,"Own Contributions","Personnel",{"$nulls":3},"0",{"$f":"IF(H23=\"\",0,(VLOOKUP(H23,Tables!$A$2:$B$9,2,FALSE))*I23)","v":{"v":0,"d":"0.00"}},null,{"v":0,"d":"0.00"}]
[0,null,null,"Own Contributions","Personnel",{"$nulls":3},"0",{"$f":"IF(H24=\"\",0,(VLOOKUP(H24,Tables!$A$2:$B$9,2,FALSE))*I24)","v":{"v":0,"d":"0.00"}},null,{"v":0,"d":"0.00"}]
[0,null,null,"Own Contributions","Personnel",{"$nulls":3},"0",{"$f":"IF(H25=\"\",0,(VLOOKUP(H25,Tables!$A$2:$B$9,2,FALSE))*I25)","v":{"v":0,"d":"0.00"}},null,{"v":0,"d":"0.00"}]
[0,null,null,"Own Contributions","Personnel",{"$nulls":3},"0",{"$f":"IF(H26=\"\",0,(VLOOKUP(H26,Tables!$A$2:$B$9,2,FALSE))*I26)","v":{"v":0,"d":"0.00"}},null,{"v":0,"d":"0.00"}]
[0,null,null,"Own Contributions","Personnel",{"$nulls":3},"0",{"$f":"IF(H27=\"\",0,(VLOOKUP(H27,Tables!$A$2:$B$9,2,FALSE))*I27)","v":{"v":0,"d":"0.00"}},null,{"v":0,"d":"0.00"}]
[0,null,null,"Own Contributions","Personnel",{"$nulls":3},"0",{"$f":"IF(H28=\"\",0,(VLOOKUP(H28,Tables!$A$2:$B$9,2,FALSE))*I28)","v":{"v":0,"d":"0.00"}},null,{"v":0,"d":"0.00"}]
[0,null,null,"Own Contributions","Personnel",{"$nulls":3},"0",{"$f":"IF(H29=\"\",0,(VLOOKUP(H29,Tables!$A$2:$B$9,2,FALSE))*I29)","v":{"v":0,"d":"0.00"}},null,{"v":0,"d":"0.00"}]
[0,null,null,"Own Contributions","Personnel",{"$nulls":3},"0",{"$f":"IF(H30=\"\",0,(VLOOKUP(H30,Tables!$A$2:$B$9,2,FALSE))*I30)","v":{"v":0,"d":"0.00"}},null,{"v":0,"d":"0.00"}]
[0,null,null,"Own Contributions","Personnel",{"$nulls":3},"0",{"$f":"IF(H31=\"\",0,(VLOOKUP(H31,Tables!$A$2:$B$9,2,FALSE))*I31)","v":{"v":0,"d":"0.00"}},null,{"v":0,"d":"0.00"}]
[0,null,null,"Own Contributions","Personnel",{"$nulls":3},"0",{"$f":"IF(H32=\"\",0,(VLOOKUP(H32,Tables!$A$2:$B$9,2,FALSE))*I32)","v":{"v":0,"d":"0.00"}},null,{"v":0,"d":"0.00"}]
[0,null,null,"Own Contributions","Personnel",{"$nulls":3},"0",{"$f":"IF(H33=\"\",0,(VLOOKUP(H33,Tables!$A$2:$B$9,2,FALSE))*I33)","v":{"v":0,"d":"0.00"}},null,{"v":0,"d":"0.00"}]
[0,null,null,"Own Contributions","Personnel",{"$nulls":3},"0",{"$f":"IF(H34=\"\",0,(VLOOKUP(H34,Tables!$A$2:$B$9,2,FALSE))*I34)","v":{"v":0,"d":"0.00"}},null,{"v":0,"d":"0.00"}]
[0,null,null,"Own Contributions","Personnel",{"$nulls":3},"0",{"$f":"IF(H35=\"\",0,(VLOOKUP(H35,Tables!$A$2:$B$9,2,FALSE))*I35)","v":{"v":0,"d":"0.00"}},null,{"v":0,"d":"0.00"}]
[0,null,null,"Own Contributions","Personnel",{"$nulls":3},"0",{"$f":"IF(H36=\"\",0,(VLOOKUP(H36,Tables!$A$2:$B$9,2,FALSE))*I36)","v":{"v":0,"d":"0.00"}},null,{"v":0,"d":"0.00"}]
[0,null,null,"Own Contributions","Personnel",{"$nulls":3},"0",{"$f":"IF(H37=\"\",0,(VLOOKUP(H37,Tables!$A$2:$B$9,2,FALSE))*I37)","v":{"v":0,"d":"0.00"}},null,{"v":0,"d":"0.00"}]
[0,null,null,"Own Contributions","Personnel",{"$nulls":3},"0",{"$f":"IF(H38=\"\",0,(VLOOKUP(H38,Tables!$A$2:$B$9,2,FALSE))*I38)","v":{"v":0,"d":"0.00"}},null,{"v":0,"d":"0.00"}]
[0,null,null,"Own Contributions","Personnel",{"$nulls":3},"0",{"$f":"IF(H39=\"\",0,(VLOOKUP(H39,Tables!$A$2:$B$9,2,FALSE))*I39)","v":{"v":0,"d":"0.00"}},null,{"v":0,"d":"0.00"}]
[0,null,null,"Own Contributions","Personnel",{"$nulls":3},"0",{"$f":"IF(H40=\"\",0,(VLOOKUP(H40,Tables!$A$2:$B$9,2,FALSE))*I40)","v":{"v":0,"d":"0.00"}},null,{"v":0,"d":"0.00"}]
[0,null,null,"Own Contributions","Personnel",{"$nulls":3},"0",{"$f":"IF(H41=\"\",0,(VLOOKUP(H41,Tables!$A$2:$B$9,2,FALSE))*I41)","v":{"v":0,"d":"0.00"}},null,{"v":0,"d":"0.00"}]
[0,null,null,"Own Contributions","Personnel",{"$nulls":3},"0",{"$f":"IF(H42=\"\",0,(VLOOKUP(H42,Tables!$A$2:$B$9,2,FALSE))*I42)","v":{"v":0,"d":"0.00"}},null,{"v":0,"d":"0.00"}]
[0,null,null,"Own Contributions","Personnel",{"$nulls":3},"0",{"$f":"IF(H43=\"\",0,(VLOOKUP(H43,Tables!$A$2:$B$9,2,FALSE))*I43)","v":{"v":0,"d":"0.00"}},null,{"v":0,"d":"0.00"}]
[0,null,null,"Own Contributions","Personnel",{"$nulls":3},"0",{"$f":"IF(H44=\"\",0,(VLOOKUP(H44,Tables!$A$2:$B$9,2,FALSE))*I44)","v":{"v":0,"d":"0.00"}},null,{"v":0,"d":"0.00"}]
[0,null,null,"Own Contributions","Personnel",{"$nulls":3},"0",{"$f":"IF(H45=\"\",0,(VLOOKUP(H45,Tables!$A$2:$B$9,2,FALSE))*I45)","v":{"v":0,"d":"0.00"}},null,{"v":0,"d":"0.00"}]
[0,null,null,"Own Contributions","Personnel",{"$nulls":3},"0",{"$f":"IF(H46=\"\",0,(VLOOKUP(H46,Tables!$A$2:$B$9,2,FALSE))*I46)","v":{"v":0,"d":"0.00"}},null,{"v":0,"d":"0.00"}]
[0,null,null,"Own Contributions","Personnel",{"$nulls":3},"0",{"$f":"IF(H47=\"\",0,(VLOOKUP(H47,Tables!$A$2:$B$9,2,FALSE))*I47)","v":{"v":0,"d":"0.00"}},null,{"v":0,"d":"0.00"}]
[0,null,null,"Own Contributions","Personnel",{"$nulls":3},"0",{"$f":"IF(H48=\"\",0,(VLOOKUP(H48,Tables!$A$2:$B$9,2,FALSE))*I48)","v":{"v":0,"d":"0.00"}},null,{"v":0,"d":"0.00"}]
[0,null,null,"Own Contributions","Personnel",{"$nulls":3},"0",{"$f":"IF(H49=\"\",0,(VLOOKUP(H49,Tables!$A$2:$B$9,2,FALSE))*I49)","v":{"v":0,"d":"0.00"}},null,{"v":0,"d":"0.00"}]
[0,null,null,"Own Contributions","Personnel",{"$nulls":3},"0",{"$f":"IF(H50=\"\",0,(VLOOKUP(H50,Tables!$A$2:$B$9,2,FALSE))*I50)","v":{"v":0,"d":"0.00"}},null,{"v":0,"d":"0.00"}]
[0,null,null,"Own Contributions","Personnel",{"$nulls":3},"0",{"$f":"IF(H51=\"\",0,(VLOOKUP(H51,Tables!$A$2:$B$9,2,FALSE))*I51)","v":{"v":0,"d":"0.00"}},null,{"v":0,"d":"0.00"}]
[0,null,null,"Own Contributions","Personnel",{"$nulls":3},"0",{"$f":"IF(H52=\"\",0,(VLOOKUP(H52,Tables!$A$2:$B$9,2,FALSE))*I52)","v":{"v":0,"d":"0.00"}},null,{"v":0,"d":"0.00"}]
[0,null,null,"Own Contributions","Personnel",{"$nulls":3},"0",{"$f":"IF(H53=\"\",0,(VLOOKUP(H53,Tables!$A$2:$B$9,2,FALSE))*I53)","v":{"v":0,"d":"0.00"}},null,{"v":0,"d":"0.00"}]
[0,null,null,"Own Contributions","Personnel",{"$nulls":3},"0",{"$f":"IF(H54=\"\",0,(VLOOKUP(H54,Tables!$A$2:$B$9,2,FALSE))*I54)","v":{"v":0,"d":"0.00"}},null,{"v":0,"d":"0.00"}]
[0,null,null,"Own Contributions","Personnel",{"$nulls":3},"0",{"$f":"IF(H55=\"\",0,(VLOOKUP(H55,Tables!$A$2:$B$9,2,FALSE))*I55)","v":{"v":0,"d":"0.00"}},null,{"v":0,"d":"0.00"}]
[0,null,null,"Own Contributions","Personnel",{"$nulls":3},"0",{"$f":"IF(H56=\"\",0,(VLOOKUP(H56,Tables!$A$2:$B$9,2,FALSE))*I56)","v":{"v":0,"d":"0.00"}},null,{"v":0,"d":"0.00"}]
[0,null,null,"Own Contributions","Personnel",{"$nulls":3},"0",{"$f":"IF(H57=\"\",0,(VLOOKUP(H57,Tables!$A$2:$B$9,2,FALSE))*I57)","v":{"v":0,"d":"0.00"}},null,{"v":0,"d":"0.00"}]
[0,null,null,"Own Contributions","Personnel",{"$nulls":3},"0",{"$f":"IF(H58=\"\",0,(VLOOKUP(H58,Tables!$A$2:$B$9,2,FALSE))*I58)","v":{"v":0,"d":"0.00"}},null,{"v":0,"d":"0.00"}]
[0,null,null,"Own Contributions","Personnel",{"$nulls":3},"0",{"$f":"IF(H59=\"\",0,(VLOOKUP(H59,Tables!$A$2:$B$9,2,FALSE))*I59)","v":{"v":0,"d":"0.00"}},null,{"v":0,"d":"0.00"}]
[0,null,null,"Own Contributions","Personnel",{"$nulls":3},"0",{"$f":"IF(H60=\"\",0,(VLOOKUP(H60,Tables!$A$2:$B$9,2,FALSE))*I60)","v":{"v":0,"d":"0.00"}},null,{"v":0,"d":"0.00"}]
[0,null,null,"Own Contributions","Personnel",{"$nulls":3},"0",{"$f":"IF(H61=\"\",0,(VLOOKUP(H61,Tables!$A$2:$B$9,2,FALSE))*I61)","v":{"v":0,"d":"0.00"}},null,{"v":0,"d":"0.00"}]
[0,null,null,"Own Contributions","Personnel",{"$nulls":3},"0",{"$f":"IF(H62=\"\",0,(VLOOKUP(H62,Tables!$A$2:$B$9,2,FALSE))*I62)","v":{"v":0,"d":"0.00"}},null,{"v":0,"d":"0.00"}]
[0,null,null,"Own Contributions","Personnel",{"$nulls":3},"0",{"$f":"IF(H63=\"\",0,(VLOOKUP(H63,Tables!$A$2:$B$9,2,FALSE))*I63)","v":{"v":0,"d":"0.00"}},null,{"v":0,"d":"0.00"}]
[0,null,null,"Own Contributions","Personnel",{"$nulls":3},"0",{"$f":"IF(H64=\"\",0,(VLOOKUP(H64,Tables!$A$2:$B$9,2,FALSE))*I64)","v":{"v":0,"d":"0.00"}},null,{"v":0,"d":"0.00"}]
[0,null,null,"Own Contributions","Personnel",{"$nulls":3},"0",{"$f":"IF(H65=\"\",0,(VLOOKUP(H65,Tables!$A$2:$B$9,2,FALSE))*I65)","v":{"v":0,"d":"0.00"}},null,{"v":0,"d":"0.00"}]
[0,null,null,"Own Contributions","Personnel",{"$nulls":3},"0",{"$f":"IF(H66=\"\",0,(VLOOKUP(H66,Tables!$A$2:$B$9,2,FALSE))*I66)","v":{"v":0,"d":"0.00"}},null,{"v":0,"d":"0.00"}]
[0,null,null,"Own Contributions","Personnel",{"$nulls":3},"0",{"$f":"IF(H67=\"\",0,(VLOOKUP(H67,Tables!$A$2:$B$9,2,FALSE))*I67)","v":{"v":0,"d":"0.00"}},null,{"v":0,"d":"0.00"}]
[0,null,null,"Own Contributions","Personnel",{"$nulls":3},"0",{"$f":"IF(H68=\"\",0,(VLOOKUP(H68,Tables!$A$2:$B$9,2,FALSE))*I68)","v":{"v":0,"d":"0.00"}},null,{"v":0,"d":"0.00"}]
[0,null,null,"Own Contributions","Personnel",{"$nulls":3},"0",{"$f":"IF(H69=\"\",0,(VLOOKUP(H69,Tables!$A$2:$B$9,2,FALSE))*I69)","v":{"v":0,"d":"0.00"}},null,{"v":0,"d":"0.00"}]
[0,null,null,"Own Contributions","Personnel",{"$nulls":3},"0",{"$f":"IF(H70=\"\",0,(VLOOKUP(H70,Tables!$A$2:$B$9,2,FALSE))*I70)","v":{"v":0,"d":"0.00"}},null,{"v":0,"d":"0.00"}]
[0,null,null,"Own Contributions","Personnel",{"$nulls":3},"0",{"$f":"IF(H71=\"\",0,(VLOOKUP(H71,Tables!$A$2:$B$9,2,FALSE))*I71)","v":{"v":0,"d":"0.00"}},null,{"v":0,"d":"0.00"}]
[0,null,null,"Own Contributions","Personnel",{"$nulls":3},{"$f":"IF(D72=\"\",0,IF(D72=\"Own Contributions\",\"0\",\"\"))","v":"0"},{"$f":"IF(H72=\"\",0,(VLOOKUP(H72,Tables!$A$2:$B$9,2,FALSE))*I72)","v":{"v":0,"d":"0.00"}},null,{"$f":"J72/12*K72","v":{"v":0,"d":"0.00"}}]
[{"$f":"A72","v":0},null,null,"Own Contributions","Personnel",{"$nulls":3},"0",{"$f":"IF(H73=\"\",0,(VLOOKUP(H73,Tables!$A$2:$B$9,2,FALSE))*I73)","v":{"v":0,"d":"0.00"}},null,{"v":0,"d":"0.00"}]
[0,null,null,"Own Contributions","Personnel",{"$nulls":3},"0",{"$f":"IF(H74=\"\",0,(VLOOKUP(H74,Tables!$A$2:$B$9,2,FALSE))*I74)","v":{"v":0,"d":"0.00"}},null,{"v":0,"d":"0.00"}]
[0,null,null,"Own Contributions","Personnel",{"$nulls":3},"0",{"$f":"IF(H75=\"\",0,(VLOOKUP(H75,Tables!$A$2:$B$9,2,FALSE))*I75)","v":{"v":0,"d":"0.00"}},null,{"v":0,"d":"0.00"}]
[0,null,null,"Own Contributions","Personnel",{"$nulls":3},"0",{"$f":"IF(H76=\"\",0,(VLOOKUP(H76,Tables!$A$2:$B$9,2,FALSE))*I76)","v":{"v":0,"d":"0.00"}},null,{"v":0,"d":"0.00"}]
[0,null,null,"Own Contributions","Personnel",{"$nulls":3},"0",{"$f":"IF(H77=\"\",0,(VLOOKUP(H77,Tables!$A$2:$B$9,2,FALSE))*I77)","v":{"v":0,"d":"0.00"}},null,{"v":0,"d":"0.00"}]
[0,null,null,"Own Contributions","Personnel",{"$nulls":3},"0",{"$f":"IF(H78=\"\",0,(VLOOKUP(H78,Tables!$A$2:$B$9,2,FALSE))*I78)","v":{"v":0,"d":"0.00"}},null,{"v":0,"d":"0.00"}]
[0,null,null,"Own Contributions","Personnel",{"$nulls":3},"0",{"$f":"IF(H79=\"\",0,(VLOOKUP(H79,Tables!$A$2:$B$9,2,FALSE))*I79)","v":{"v":0,"d":"0.00"}},null,{"v":0,"d":"0.00"}]
[0,null,null,"Own Contributions","Personnel",{"$nulls":3},"0",{"$f":"IF(H80=\"\",0,(VLOOKUP(H80,Tables!$A$2:$B$9,2,FALSE))*I80)","v":{"v":0,"d":"0.00"}},null,{"v":0,"d":"0.00"}]
[0,null,null,"Own Contributions","Personnel",{"$nulls":3},"0",{"$f":"IF(H81=\"\",0,(VLOOKUP(H81,Tables!$A$2:$B$9,2,FALSE))*I81)","v":{"v":0,"d":"0.00"}},null,{"v":0,"d":"0.00"}]
[0,null,null,"Own Contributions","Personnel",{"$nulls":3},"0",{"$f":"IF(H82=\"\",0,(VLOOKUP(H82,Tables!$A$2:$B$9,2,FALSE))*I82)","v":{"v":0,"d":"0.00"}},null,{"v":0,"d":"0.00"}]
[0,null,null,"Own Contributions","Personnel",{"$nulls":3},"0",{"$f":"IF(H83=\"\",0,(VLOOKUP(H83,Tables!$A$2:$B$9,2,FALSE))*I83)","v":{"v":0,"d":"0.00"}},null,{"v":0,"d":"0.00"}]
[0,null,null,"Own Contributions","Personnel",{"$nulls":3},"0",{"$f":"IF(H84=\"\",0,(VLOOKUP(H84,Tables!$A$2:$B$9,2,FALSE))*I84)","v":{"v":0,"d":"0.00"}},null,{"v":0,"d":"0.00"}]
[0,null,null,"Own Contributions","Personnel",{"$nulls":3},"0",{"$f":"IF(H85=\"\",0,(VLOOKUP(H85,Tables!$A$2:$B$9,2,FALSE))*I85)","v":{"v":0,"d":"0.00"}},null,{"v":0,"d":"0.00"}]
[0,null,null,"Own Contributions","Personnel",{"$nulls":3},"0",{"$f":"IF(H86=\"\",0,(VLOOKUP(H86,Tables!$A$2:$B$9,2,FALSE))*I86)","v":{"v":0,"d":"0.00"}},null,{"v":0,"d":"0.00"}]
[0,null,null,"Own Contributions","Personnel",{"$nulls":3},"0",{"$f":"IF(H87=\"\",0,(VLOOKUP(H87,Tables!$A$2:$B$9,2,FALSE))*I87)","v":{"v":0,"d":"0.00"}},null,{"v":0,"d":"0.00"}]
[0,null,null,"Own Contributions","Personnel",{"$nulls":3},"0",{"$f":"IF(H88=\"\",0,(VLOOKUP(H88,Tables!$A$2:$B$9,2,FALSE))*I88)","v":{"v":0,"d":"0.00"}},null,{"v":0,"d":"0.00"}]
[0,null,null,"Own Contributions","Personnel",{"$nulls":3},"0",{"$f":"IF(H89=\"\",0,(VLOOKUP(H89,Tables!$A$2:$B$9,2,FALSE))*I89)","v":{"v":0,"d":"0.00"}},null,{"v":0,"d":"0.00"}]
[0,null,null,"Own Contributions","Personnel",{"$nulls":3},"0",{"$f":"IF(H90=\"\",0,(VLOOKUP(H90,Tables!$A$2:$B$9,2,FALSE))*I90)","v":{"v":0,"d":"0.00"}},null,{"v":0,"d":"0.00"}]
[0,null,null,"Own Contributions","Personnel",{"$nulls":3},"0",{"$f":"IF(H91=\"\",0,(VLOOKUP(H91,Tables!$A$2:$B$9,2,FALSE))*I91)","v":{"v":0,"d":"0.00"}},null,{"v":0,"d":"0.00"}]
[0,null,null,"Own Contributions","Personnel",{"$nulls":3},"0",{"$f":"IF(H92=\"\",0,(VLOOKUP(H92,Tables!$A$2:$B$9,2,FALSE))*I92)","v":{"v":0,"d":"0.00"}},null,{"v":0,"d":"0.00"}]
[0,null,null,"Own Contributions","Personnel",{"$nulls":3},"0",{"$f":"IF(H93=\"\",0,(VLOOKUP(H93,Tables!$A$2:$B$9,2,FALSE))*I93)","v":{"v":0,"d":"0.00"}},null,{"v":0,"d":"0.00"}]
[0,null,null,"Own Contributions","Personnel",{"$nulls":3},"0",{"$f":"IF(H94=\"\",0,(VLOOKUP(H94,Tables!$A$2:$B$9,2,FALSE))*I94)","v":{"v":0,"d":"0.00"}},null,{"v":0,"d":"0.00"}]
[0,null,null,"Own Contributions","Personnel",{"$nulls":3},"0",{"$f":"IF(H95=\"\",0,(VLOOKUP(H95,Tables!$A$2:$B$9,2,FALSE))*I95)","v":{"v":0,"d":"0.00"}},null,{"v":0,"d":"0.00"}]
[0,null,null,"Own Contributions","Personnel",{"$nulls":3},"0",{"$f":"IF(H96=\"\",0,(VLOOKUP(H96,Tables!$A$2:$B$9,2,FALSE))*I96)","v":{"v":0,"d":"0.00"}},null,{"v":0,"d":"0.00"}]
[0,null,null,"Own Contributions","Personnel",{"$nulls":3},"0",{"$f":"IF(H97=\"\",0,(VLOOKUP(H97,Tables!$A$2:$B$9,2,FALSE))*I97)","v":{"v":0,"d":"0.00"}},null,{"v":0,"d":"0.00"}]
[0,null,null,"Own Contributions","Personnel",{"$nulls":3},"0",{"$f":"IF(H98=\"\",0,(VLOOKUP(H98,Tables!$A$2:$B$9,2,FALSE))*I98)","v":{"v":0,"d":"0.00"}},null,{"v":0,"d":"0.00"}]
[0,null,null,"Own Contributions","Personnel",{"$nulls":3},"0",{"$f":"IF(H99=\"\",0,(VLOOKUP(H99,Tables!$A$2:$B$9,2,FALSE))*I99)","v":{"v":0,"d":"0.00"}},null,{"v":0,"d":"0.00"}]
[0,null,null,"Own Contributions","Personnel",{"$nulls":3},"0",{"$f":"IF(H100=\"\",0,(VLOOKUP(H100,Tables!$A$2:$B$9,2,FALSE))*I100)","v":{"v":0,"d":"0.00"}},null,{"v":0,"d":"0.00"}]
[0,null,null,"Own Contributions","Personnel",{"$nulls":3},"0",{"$f":"IF(H101=\"\",0,(VLOOKUP(H101,Tables!$A$2:$B$9,2,FALSE))*I101)","v":{"v":0,"d":"0.00"}},null,{"v":0,"d":"0.00"}]
[0,null,null,"Own Contributions","Personnel",{"$nulls":3},"0",{"$f":"IF(H102=\"\",0,(VLOOKUP(H102,Tables!$A$2:$B$9,2,FALSE))*I102)","v":{"v":0,"d":"0.00"}},null,{"v":0,"d":"0.00"}]
[0,null,null,"Own Contributions","Personnel",{"$nulls":3},"0",{"$f":"IF(H103=\"\",0,(VLOOKUP(H103,Tables!$A$2:$B$9,2,FALSE))*I103)","v":{"v":0,"d":"0.00"}},null,{"v":0,"d":"0.00"}]
[0,null,null,"Own Contributions","Personnel",{"$nulls":3},"0",{"$f":"IF(H104=\"\",0,(VLOOKUP(H104,Tables!$A$2:$B$9,2,FALSE))*I104)","v":{"v":0,"d":"0.00"}},null,{"v":0,"d":"0.00"}]
[0,null,null,"Own Contributions","Personnel",{"$nulls":3},"0",{"$f":"IF(H105=\"\",0,(VLOOKUP(H105,Tables!$A$2:$B$9,2,FALSE))*I105)","v":{"v":0,"d":"0.00"}},null,{"v":0,"d":"0.00"}]
[0,null,null,"Own Contributions","Personnel",{"$nulls":3},"0",{"$f":"IF(H106=\"\",0,(VLOOKUP(H106,Tables!$A$2:$B$9,2,FALSE))*I106)","v":{"v":0,"d":"0.00"}},null,{"v":0,"d":"0.00"}]
[0,null,null,"Own Contributions","Personnel",{"$nulls":3},"0",{"$f":"IF(H107=\"\",0,(VLOOKUP(H107,Tables!$A$2:$B$9,2,FALSE))*I107)","v":{"v":0,"d":"0.00"}},null,{"v":0,"d":"0.00"}]
[0,null,null,"Own Contributions","Personnel",{"$nulls":3},{"$f":"IF(D108=\"\",0,IF(D108=\"Own Contributions\",\"0\",\"\"))","v":"0"},{"$f":"IF(H108=\"\",0,(VLOOKUP(H108,Tables!$A$2:$B$9,2,FALSE))*I108)","v":{"v":0,"d":"0.00"}},null,{"v":0,"d":"0.00"}]
[0,null,null,"Own Contributions","Personnel",{"$nulls":3},"0",{"$f":"IF(H109=\"\",0,(VLOOKUP(H109,Tables!$A$2:$B$9,2,FALSE))*I109)","v":{"v":0,"d":"0.00"}},null,{"v":0,"d":"0.00"}]
[]
[{"$nulls":11},{"$f":"SUM(L7:L109)","v":{"v":0,"d":"0.00"}}]

{"sheet":" OC Equip. & E.I.","index":6,"n_rows":108,"n_cols":12,"rows_kept":108,"merged":[[1,4,1,9],[2,0,2,2],[4,0,4,9]]}
[]
["Own Contribution",null,null,"Project Titel:",{"$f":"Consolidation!F5","v":0}]
["Equipment and Existing \nInfrastructure",null,null,"SystX.ch int.ref.:",{"$f":"Consolidation!F14","v":0}]
[]
["You may enter totals for purchased EQUIPMENT per RESEARCH GROUP, IF you submit the details as a separate Excel file. "]
[]
[null,{"$f":"K108","v":0}]
["Project","Institution","Research Group","Funding Category","Cost Type","Description","Internal Reference","Purchase date","Cost","% made available to SystemsX.ch","CHF  Total 2017","Comments"]
[{"$f":"E2","v":0},null,null,"Own Contributions",{"$nulls":6},{"$f":"SUM(I9*J9)","v":0}]
[{"$f":"E2","v":0},null,null,"Own Contributions",{"$nulls":6},{"$f":"SUM(I10*J10)","v":0}]
[{"$f":"A10","v":0},null,null,"Own Contributions",{"$nulls":6},0]
[0,null,null,"Own Contributions",{"$nulls":6},0]
[0,null,null,"Own Contributions",{"$nulls":6},0]
[0,null,null,"Own Contributions",{"$nulls":6},0]
[0,null,null,"Own Contributions",{"$nulls":6},0]
[0,null,null,"Own Contributions",{"$nulls":6},0]
[0,null,null,"Own Contributions",{"$nulls":6},0]
[0,null,null,"Own Contributions",{"$nulls":6},0]
[0,null,null,"Own Contributions",{"$nulls":6},0]
[0,null,null,"Own Contributions",{"$nulls":6},0]
[0,null,null,"Own Contributions",{"$nulls":6},0]
[0,null,null,"Own Contributions",{"$nulls":6},0]
[0,null,null,"Own Contributions",{"$nulls":6},0]
[0,null,null,"Own Contributions",{"$nulls":6},0]
[0,null,null,"Own Contributions",{"$nulls":6},0]
[0,null,null,"Own Contributions",{"$nulls":6},0]
[0,null,null,"Own Contributions",{"$nulls":6},0]
[0,null,null,"Own Contributions",{"$nulls":6},0]
[0,null,null,"Own Contributions",{"$nulls":6},0]
[0,null,null,"Own Contributions",{"$nulls":6},0]
[0,null,null,"Own Contributions",{"$nulls":6},0]
[0,null,null,"Own Contributions",{"$nulls":6},0]
[0,null,null,"Own Contributions",{"$nulls":6},0]
[0,null,null,"Own Contributions",{"$nulls":6},0]
[0,null,null,"Own Contributions",{"$nulls":6},0]
[0,null,null,"Own Contributions",{"$nulls":6},0]
[0,null,null,"Own Contributions",{"$nulls":6},0]
[0,null,null,"Own Contributions",{"$nulls":6},0]
[0,null,null,"Own Contributions",{"$nulls":6},0]
[0,null,null,"Own Contributions",{"$nulls":6},0]
[0,null,null,"Own Contributions",{"$nulls":6},0]
[0,null,null,"Own Contributions",{"$nulls":6},0]
[0,null,null,"Own Contributions",{"$nulls":6},0]
[0,null,null,"Own Contributions",{"$nulls":6},0]
[0,null,null,"Own Contributions",{"$nulls":6},0]
[0,null,null,"Own Contributions",{"$nulls":6},0]
[0,null,null,"Own Contributions",{"$nulls":6},0]
[0,null,null,"Own Contributions",{"$nulls":6},0]
[0,null,null,"Own Contributions",{"$nulls":6},0]
[0,null,null,"Own Contributions",{"$nulls":6},0]
[0,null,null,"Own Contributions",{"$nulls":6},0]
[0,null,null,"Own Contributions",{"$nulls":6},0]
[0,null,null,"Own Contributions",{"$nulls":6},0]
[0,null,null,"Own Contributions",{"$nulls":6},0]
[0,null,null,"Own Contributions",{"$nulls":6},0]
[0,null,null,"Own Contributions",{"$nulls":6},0]
[0,null,null,"Own Contributions",{"$nulls":6},0]
[0,null,null,"Own Contributions",{"$nulls":6},0]
[0,null,null,"Own Contributions",{"$nulls":6},0]
[0,null,null,"Own Contributions",{"$nulls":6},0]
[0,null,null,"Own Contributions",{"$nulls":6},0]
[0,null,null,"Own Contributions",{"$nulls":6},0]
[0,null,null,"Own Contributions",{"$nulls":6},0]
[0,null,null,"Own Contributions",{"$nulls":6},0]
[0,null,null,"Own Contributions",{"$nulls":6},0]
[0,null,null,"Own Contributions",{"$nulls":6},0]
[0,null,null,"Own Contributions",{"$nulls":6},0]
[0,null,null,"Own Contributions",{"$nulls":6},0]
[0,null,null,"Own Contributions",{"$nulls":6},0]
[0,null,null,"Own Contributions",{"$nulls":6},0]
[0,null,null,"Own Contributions",{"$nulls":6},0]
[0,null,null,"Own Contributions",{"$nulls":6},0]
[0,null,null,"Own Contributions",{"$nulls":6},0]
[0,null,null,"Own Contributions",{"$nulls":6},{"$f":"SUM(I74*J74)","v":0}]
[{"$f":"A74","v":0},null,null,"Own Contributions",{"$nulls":6},0]
[0,null,null,"Own Contributions",{"$nulls":6},0]
[0,null,null,"Own Contributions",{"$nulls":6},0]
[0,null,null,"Own Contributions",{"$nulls":6},0]
[0,null,null,"Own Contributions",{"$nulls":6},0]
[0,null,null,"Own Contributions",{"$nulls":6},0]
[0,null,null,"Own Contributions",{"$nulls":6},0]
[0,null,null,"Own Contributions",{"$nulls":6},0]
[0,null,null,"Own Contributions",{"$nulls":6},0]
[0,null,null,"Own Contributions",{"$nulls":6},0]
[0,null,null,"Own Contributions",{"$nulls":6},0]
[0,null,null,"Own Contributions",{"$nulls":6},0]
[0,null,null,"Own Contributions",{"$nulls":6},0]
[0,null,null,"Own Contributions",{"$nulls":6},0]
[0,null,null,"Own Contributions",{"$nulls":6},0]
[0,null,null,"Own Contributions",{"$nulls":6},0]
[0,null,null,"Own Contributions",{"$nulls":6},0]
[0,null,null,"Own Contributions",{"$nulls":6},0]
[0,null,null,"Own Contributions",{"$nulls":6},0]
[0,null,null,"Own Contributions",{"$nulls":6},0]
[0,null,null,"Own Contributions",{"$nulls":6},0]
[0,null,null,"Own Contributions",{"$nulls":6},0]
[0,null,null,"Own Contributions",{"$nulls":6},0]
[0,null,null,"Own Contributions",{"$nulls":6},0]
[0,null,null,"Own Contributions",{"$nulls":6},0]
[0,null,null,"Own Contributions",{"$nulls":6},0]
[0,null,null,"Own Contributions",{"$nulls":6},0]
[0,null,null,"Own Contributions",{"$nulls":6},0]
[0,null,null,"Own Contributions",{"$nulls":6},0]
[0,null,null,"Own Contributions",{"$nulls":6},0]
[0,null,null,"Own Contributions",{"$nulls":6},0]
[0,null,null,"Own Contributions",{"$nulls":6},0]
[]
[{"$nulls":10},{"$f":"SUM(K9:K106)","v":0}]

{"sheet":"OC Cons.","index":7,"n_rows":202,"n_cols":12,"rows_kept":202,"merged":[[1,4,1,8],[2,0,2,2],[3,0,3,9]]}
[]
["Own Contribution",null,null,"Project Titel:",{"$f":"Consolidation!F5","v":0}]
["Consumables",null,null,"SystX.ch int.ref.:",{"$f":"Consolidation!F14","v":0}]
["You may enter totals per FUNDING CATEGORY per RESEARCH GROUP, IF you submit the details as a separate Excel file. "]
[null,{"$f":"K202","v":0}]
["Project","Institution","Research Group","Funding Category","Cost Type","Description","Internal Reference","Purchase date","CHF 2017","% for SysX.ch  2017","Total CHF  2017","Comments"]
[{"$f":"E2","v":0},null,null,"Own Contributions","Consumables",{"$nulls":5},{"$f":"J7*I7","v":0}]
[{"$f":"A7","v":0},null,null,"Own Contributions","Consumables",{"$nulls":5},{"$f":"J8*I8","v":0}]
[{"$f":"A8","v":0},null,null,"Own Contributions","Consumables",{"$nulls":5},0]
[0,null,null,"Own Contributions","Consumables",{"$nulls":5},0]
[0,null,null,"Own Contributions","Consumables",{"$nulls":5},0]
[0,null,null,"Own Contributions","Consumables",{"$nulls":5},0]
[0,null,null,"Own Contributions","Consumables",{"$nulls":5},0]
[0,null,null,"Own Contributions","Consumables",{"$nulls":5},0]
[0,null,null,"Own Contributions","Consumables",{"$nulls":5},0]
[0,null,null,"Own Contributions","Consumables",{"$nulls":5},0]
[0,null,null,"Own Contributions","Consumables",{"$nulls":5},0]
[0,null,null,"Own Contributions","Consumables",{"$nulls":5},0]
[0,null,null,"Own Contributions","Consumables",{"$nulls":5},0]
[0,null,null,"Own Contributions","Consumables",{"$nulls":5},0]
[0,null,null,"Own Contributions","Consumables",{"$nulls":5},0]
[0,null,null,"Own Contributions","Consumables",{"$nulls":5},0]
[0,null,null,"Own Contributions","Consumables",{"$nulls":5},0]
[0,null,null,"Own Contributions","Consumables",{"$nulls":5},0]
[0,null,null,"Own Contributions","Consumables",{"$nulls":5},0]
[0,null,null,"Own Contributions","Consumables",{"$nulls":5},0]
[0,null,null,"Own Contributions","Consumables",{"$nulls":5},0]
[0,null,null,"Own Contributions","Consumables",{"$nulls":5},0]
[0,null,null,"Own Contributions","Consumables",{"$nulls":5},0]
[0,null,null,"Own Contributions","Consumables",{"$nulls":5},0]
[0,null,null,"Own Contributions","Consumables",{"$nulls":5},0]
[0,null,null,"Own Contributions","Consumables",{"$nulls":5},0]
[0,null,null,"Own Contributions","Consumables",{"$nulls":5},0]
[0,null,null,"Own Contributions","Consumables",{"$nulls":5},0]
[0,null,null,"Own Contributions","Consumables",{"$nulls":5},0]
[0,null,null,"Own Contributions","Consumables",{"$nulls":5},0]
[0,null,null,"Own Contributions","Consumables",{"$nulls":5},0]
[0,null,null,"Own Contributions","Consumables",{"$nulls":5},0]
[0,null,null,"Own Contributions","Consumables",{"$nulls":5},0]
[0,null,null,"Own Contributions","Consumables",{"$nulls":5},0]
[0,null,null,"Own Contributions","Consumables",{"$nulls":5},0]
[0,null,null,"Own Contributions","Consumables",{"$nulls":5},0]
[0,null,null,"Own Contributions","Consumables",{"$nulls":5},0]
[0,null,null,"Own Contributions","Consumables",{"$nulls":5},0]
[0,null,null,"Own Contributions","Consumables",{"$nulls":5},0]
[0,null,null,"Own Contributions","Consumables",{"$nulls":5},0]
[0,null,null,"Own Contributions","Consumables",{"$nulls":5},0]
[0,null,null,"Own Contributions","Consumables",{"$nulls":5},0]
[0,null,null,"Own Contributions","Consumables",{"$nulls":5},0]
[0,null,null,"Own Contributions","Consumables",{"$nulls":5},0]
[0,null,null,"Own Contributions","Consumables",{"$nulls":5},0]
[0,null,null,"Own Contributions","Consumables",{"$nulls":5},0]
[0,null,null,"Own Contributions","Consumables",{"$nulls":5},0]
[0,null,null,"Own Contributions","Consumables",{"$nulls":5},0]
[0,null,null,"Own Contributions","Consumables",{"$nulls":5},0]
[0,null,null,"Own Contributions","Consumables",{"$nulls":5},0]
[0,null,null,"Own Contributions","Consumables",{"$nulls":5},0]
[0,null,null,"Own Contributions","Consumables",{"$nulls":5},0]
[0,null,null,"Own Contributions","Consumables",{"$nulls":5},0]
[0,null,null,"Own Contributions","Consumables",{"$nulls":5},0]
[0,null,null,"Own Contributions","Consumables",{"$nulls":5},0]
[0,null,null,"Own Contributions","Consumables",{"$nulls":5},0]
[0,null,null,"Own Contributions","Consumables",{"$nulls":5},0]
[0,null,null,"Own Contributions","Consumables",{"$nulls":5},0]
[0,null,null,"Own Contributions","Consumables",{"$nulls":5},0]
[0,null,null,"Own Contributions","Consumables",{"$nulls":5},0]
[0,null,null,"Own Contributions","Consumables",{"$nulls":5},0]
[0,null,null,"Own Contributions","Consumables",{"$nulls":5},0]
[0,null,null,"Own Contributions","Consumables",{"$nulls":5},0]
[0,null,null,"Own Contributions","Consumables",{"$nulls":5},0]
[0,null,null,"Own Contributions","Consumables",{"$nulls":5},0]
[0,null,null,"Own Contributions","Consumables",{"$nulls":5},{"$f":"J72*I72","v":0}]
[{"$f":"A72","v":0},null,null,"Own Contributions","Consumables",{"$nulls":5},0]
[0,null,null,"Own Contributions","Consumables",{"$nulls":5},0]
[0,null,null,"Own Contributions","Consumables",{"$nulls":5},0]
[0,null,null,"Own Contributions","Consumables",{"$nulls":5},0]
[0,null,null,"Own Contributions","Consumables",{"$nulls":5},0]
[0,null,null,"Own Contributions","Consumables",{"$nulls":5},0]
[0,null,null,"Own Contributions","Consumables",{"$nulls":5},0]
[0,null,null,"Own Contributions","Consumables",{"$nulls":5},0]
[0,null,null,"Own Contributions","Consumables",{"$nulls":5},0]
[0,null,null,"Own Contributions","Consumables",{"$nulls":5},0]
[0,null,null,"Own Contributions","Consumables",{"$nulls":5},0]
[0,null,null,"Own Contributions","Consumables",{"$nulls":5},0]
[0,null,null,"Own Contributions","Consumables",{"$nulls":5},0]
[0,null,null,"Own Contributions","Consumables",{"$nulls":5},0]
[0,null,null,"Own Contributions","Consumables",{"$nulls":5},0]
[0,null,null,"Own Contributions","Consumables",{"$nulls":5},0]
[0,null,null,"Own Contributions","Consumables",{"$nulls":5},0]
[0,null,null,"Own Contributions","Consumables",{"$nulls":5},0]
[0,null,null,"Own Contributions","Consumables",{"$nulls":5},0]
[0,null,null,"Own Contributions","Consumables",{"$nulls":5},0]
[0,null,null,"Own Contributions","Consumables",{"$nulls":5},0]
[0,null,null,"Own Contributions","Consumables",{"$nulls":5},0]
[0,null,null,"Own Contributions","Consumables",{"$nulls":5},0]
[0,null,null,"Own Contributions","Consumables",{"$nulls":5},0]
[0,null,null,"Own Contributions","Consumables",{"$nulls":5},0]
[0,null,null,"Own Contributions","Consumables",{"$nulls":5},0]
[0,null,null,"Own Contributions","Consumables",{"$nulls":5},0]
[0,null,null,"Own Contributions","Consumables",{"$nulls":5},0]
[0,null,null,"Own Contributions","Consumables",{"$nulls":5},0]
[0,null,null,"Own Contributions","Consumables",{"$nulls":5},0]
[0,null,null,"Own Contributions","Consumables",{"$nulls":5},0]
[0,null,null,"Own Contributions","Consumables",{"$nulls":5},0]
[0,null,null,"Own Contributions","Consumables",{"$nulls":5},0]
[0,null,null,"Own Contributions","Consumables",{"$nulls":5},0]
[0,null,null,"Own Contributions","Consumables",{"$nulls":5},0]
[0,null,null,"Own Contributions","Consumables",{"$nulls":5},0]
[0,null,null,"Own Contributions","Consumables",{"$nulls":5},0]
[0,null,null,"Own Contributions","Consumables",{"$nulls":5},0]
[0,null,null,"Own Contributions","Consumables",{"$nulls":5},0]
[0,null,null,"Own Contributions","Consumables",{"$nulls":5},0]
[0,null,null,"Own Contributions","Consumables",{"$nulls":5},0]
[0,null,null,"Own Contributions","Consumables",{"$nulls":5},0]
[0,null,null,"Own Contributions","Consumables",{"$nulls":5},0]
[0,null,null,"Own Contributions","Consumables",{"$nulls":5},0]
[0,null,null,"Own Contributions","Consumables",{"$nulls":5},0]
[0,null,null,"Own Contributions","Consumables",{"$nulls":5},0]
[0,null,null,"Own Contributions","Consumables",{"$nulls":5},0]
[0,null,null,"Own Contributions","Consumables",{"$nulls":5},0]
[0,null,null,"Own Contributions","Consumables",{"$nulls":5},0]
[0,null,null,"Own Contributions","Consumables",{"$nulls":5},0]
[0,null,null,"Own Contributions","Consumables",{"$nulls":5},0]
[0,null,null,"Own Contributions","Consumables",{"$nulls":5},0]
[0,null,null,"Own Contributions","Consumables",{"$nulls":5},0]
[0,null,null,"Own Contributions","Consumables",{"$nulls":5},0]
[0,null,null,"Own Contributions","Consumables",{"$nulls":5},0]
[0,null,null,"Own Contributions","Consumables",{"$nulls":5},0]
[0,null,null,"Own Contributions","Consumables",{"$nulls":5},0]
[0,null,null,"Own Contributions","Consumables",{"$nulls":5},0]
[0,null,null,"Own Contributions","Consumables",{"$nulls":5},0]
[0,null,null,"Own Contributions","Consumables",{"$nulls":5},0]
[0,null,null,"Own Contributions","Consumables",{"$nulls":5},0]
[0,null,null,"Own Contributions","Consumables",{"$nulls":5},0]
[0,null,null,"Own Contributions","Consumables",{"$nulls":5},0]
[0,null,null,"Own Contributions","Consumables",{"$nulls":5},{"$f":"J136*I136","v":0}]
[{"$f":"A136","v":0},null,null,"Own Contributions","Consumables",{"$nulls":5},0]
[0,null,null,"Own Contributions","Consumables",{"$nulls":5},0]
[0,null,null,"Own Contributions","Consumables",{"$nulls":5},0]
[0,null,null,"Own Contributions","Consumables",{"$nulls":5},0]
[0,null,null,"Own Contributions","Consumables",{"$nulls":5},0]
[0,null,null,"Own Contributions","Consumables",{"$nulls":5},0]
[0,null,null,"Own Contributions","Consumables",{"$nulls":5},0]
[0,null,null,"Own Contributions","Consumables",{"$nulls":5},0]
[0,null,null,"Own Contributions","Consumables",{"$nulls":5},0]
[0,null,null,"Own Contributions","Consumables",{"$nulls":5},0]
[0,null,null,"Own Contributions","Consumables",{"$nulls":5},0]
[0,null,null,"Own Contributions","Consumables",{"$nulls":5},0]
[0,null,null,"Own Contributions","Consumables",{"$nulls":5},0]
[0,null,null,"Own Contributions","Consumables",{"$nulls":5},0]
[0,null,null,"Own Contributions","Consumables",{"$nulls":5},0]
[0,null,null,"Own Contributions","Consumables",{"$nulls":5},0]
[0,null,null,"Own Contributions","Consumables",{"$nulls":5},0]
[0,null,null,"Own Contributions","Consumables",{"$nulls":5},0]
[0,null,null,"Own Contributions","Consumables",{"$nulls":5},0]
[0,null,null,"Own Contributions","Consumables",{"$nulls":5},0]
[0,null,null,"Own Contributions","Consumables",{"$nulls":5},0]
[0,null,null,"Own Contributions","Consumables",{"$nulls":5},0]
[0,null,null,"Own Contributions","Consumables",{"$nulls":5},0]
[0,null,null,"Own Contributions","Consumables",{"$nulls":5},0]
[0,null,null,"Own Contributions","Consumables",{"$nulls":5},0]
[0,null,null,"Own Contributions","Consumables",{"$nulls":5},0]
[0,null,null,"Own Contributions","Consumables",{"$nulls":5},0]
[0,null,null,"Own Contributions","Consumables",{"$nulls":5},0]
[0,null,null,"Own Contributions","Consumables",{"$nulls":5},0]
[0,null,null,"Own Contributions","Consumables",{"$nulls":5},0]
[0,null,null,"Own Contributions","Consumables",{"$nulls":5},0]
[0,null,null,"Own Contributions","Consumables",{"$nulls":5},0]
[0,null,null,"Own Contributions","Consumables",{"$nulls":5},0]
[0,null,null,"Own Contributions","Consumables",{"$nulls":5},0]
[0,null,null,"Own Contributions","Consumables",{"$nulls":5},0]
[0,null,null,"Own Contributions","Consumables",{"$nulls":5},0]
[0,null,null,"Own Contributions","Consumables",{"$nulls":5},0]
[0,null,null,"Own Contributions","Consumables",{"$nulls":5},0]
[0,null,null,"Own Contributions","Consumables",{"$nulls":5},0]
[0,null,null,"Own Contributions","Consumables",{"$nulls":5},0]
[0,null,null,"Own Contributions","Consumables",{"$nulls":5},0]
[0,null,null,"Own Contributions","Consumables",{"$nulls":5},0]
[0,null,null,"Own Contributions","Consumables",{"$nulls":5},0]
[0,null,null,"Own Contributions","Consumables",{"$nulls":5},0]
[0,null,null,"Own Contributions","Consumables",{"$nulls":5},0]
[0,null,null,"Own Contributions","Consumables",{"$nulls":5},0]
[0,null,null,"Own Contributions","Consumables",{"$nulls":5},0]
[0,null,null,"Own Contributions","Consumables",{"$nulls":5},0]
[0,null,null,"Own Contributions","Consumables",{"$nulls":5},0]
[0,null,null,"Own Contributions","Consumables",{"$nulls":5},0]
[0,null,null,"Own Contributions","Consumables",{"$nulls":5},0]
[0,null,null,"Own Contributions","Consumables",{"$nulls":5},0]
[0,null,null,"Own Contributions","Consumables",{"$nulls":5},0]
[0,null,null,"Own Contributions","Consumables",{"$nulls":5},0]
[0,null,null,"Own Contributions","Consumables",{"$nulls":5},0]
[0,null,null,"Own Contributions","Consumables",{"$nulls":5},0]
[0,null,null,"Own Contributions","Consumables",{"$nulls":5},0]
[0,null,null,"Own Contributions","Consumables",{"$nulls":5},0]
[0,null,null,"Own Contributions","Consumables",{"$nulls":5},0]
[0,null,null,"Own Contributions","Consumables",{"$nulls":5},0]
[0,null,null,"Own Contributions","Consumables",{"$nulls":5},0]
[0,null,null,"Own Contributions","Consumables",{"$nulls":5},0]
[0,null,null,"Own Contributions","Consumables",{"$nulls":5},0]
[0,null,null,"Own Contributions","Consumables",{"$nulls":5},{"$f":"J200*I200","v":0}]
[]
[{"$nulls":10},{"$f":"SUM(K7:K201)","v":0}]

{"sheet":"OC Misc","index":8,"n_rows":202,"n_cols":12,"rows_kept":202,"merged":[[1,4,1,8],[2,0,2,2],[3,0,3,9]]}
[]
["Own Contribution",null,null,"Project Titel:",{"$f":"Consolidation!F5","v":0}]
["Miscellaneous",null,null,"SystX.ch int.ref.:",{"$f":"Consolidation!F14","v":0}]
["You may enter totals per FUNDING CATEGORY per RESEARCH GROUP, IF you submit the details as a separate Excel file. "]
[null,{"$f":"K202","v":0}]
["Project","Institution","Research Group","Funding Category","Cost Type","Description","Internal Reference","Purchase date","CHF 2017","% for SysX.ch  2017","Total CHF  2017","Comments"]
[{"$f":"E2","v":0},null,null,"Own Contributions","Miscellaneous",{"$nulls":5},{"$f":"J7*I7","v":0}]
[{"$f":"A7","v":0},null,null,"Own Contributions","Miscellaneous",{"$nulls":5},{"$f":"J8*I8","v":0}]
[{"$f":"A8","v":0},null,null,"Own Contributions","Miscellaneous",{"$nulls":5},0]
[0,null,null,"Own Contributions","Miscellaneous",{"$nulls":5},0]
[0,null,null,"Own Contributions","Miscellaneous",{"$nulls":5},0]
[0,null,null,"Own Contributions","Miscellaneous",{"$nulls":5},0]
[0,null,null,"Own Contributions","Miscellaneous",{"$nulls":5},0]
[0,null,null,"Own Contributions","Miscellaneous",{"$nulls":5},0]
[0,null,null,"Own Contributions","Miscellaneous",{"$nulls":5},0]
[0,null,null,"Own Contributions","Miscellaneous",{"$nulls":5},0]
[0,null,null,"Own Contributions","Miscellaneous",{"$nulls":5},0]
[0,null,null,"Own Contributions","Miscellaneous",{"$nulls":5},0]
[0,null,null,"Own Contributions","Miscellaneous",{"$nulls":5},0]
[0,null,null,"Own Contributions","Miscellaneous",{"$nulls":5},0]
[0,null,null,"Own Contributions","Miscellaneous",{"$nulls":5},0]
[0,null,null,"Own Contributions","Miscellaneous",{"$nulls":5},0]
[0,null,null,"Own Contributions","Miscellaneous",{"$nulls":5},0]
[0,null,null,"Own Contributions","Miscellaneous",{"$nulls":5},0]
[0,null,null,"Own Contributions","Miscellaneous",{"$nulls":5},0]
[0,null,null,"Own Contributions","Miscellaneous",{"$nulls":5},0]
[0,null,null,"Own Contributions","Miscellaneous",{"$nulls":5},0]
[0,null,null,"Own Contributions","Miscellaneous",{"$nulls":5},0]
[0,null,null,"Own Contributions","Miscellaneous",{"$nulls":5},0]
[0,null,null,"Own Contributions","Miscellaneous",{"$nulls":5},0]
[0,null,null,"Own Contributions","Miscellaneous",{"$nulls":5},0]
[0,null,null,"Own Contributions","Miscellaneous",{"$nulls":5},0]
[0,null,null,"Own Contributions","Miscellaneous",{"$nulls":5},0]
[0,null,null,"Own Contributions","Miscellaneous",{"$nulls":5},0]
[0,null,null,"Own Contributions","Miscellaneous",{"$nulls":5},0]
[0,null,null,"Own Contributions","Miscellaneous",{"$nulls":5},0]
[0,null,null,"Own Contributions","Miscellaneous",{"$nulls":5},0]
[0,null,null,"Own Contributions","Miscellaneous",{"$nulls":5},0]
[0,null,null,"Own Contributions","Miscellaneous",{"$nulls":5},0]
[0,null,null,"Own Contributions","Miscellaneous",{"$nulls":5},0]
[0,null,null,"Own Contributions","Miscellaneous",{"$nulls":5},0]
[0,null,null,"Own Contributions","Miscellaneous",{"$nulls":5},0]
[0,null,null,"Own Contributions","Miscellaneous",{"$nulls":5},0]
[0,null,null,"Own Contributions","Miscellaneous",{"$nulls":5},0]
[0,null,null,"Own Contributions","Miscellaneous",{"$nulls":5},0]
[0,null,null,"Own Contributions","Miscellaneous",{"$nulls":5},0]
[0,null,null,"Own Contributions","Miscellaneous",{"$nulls":5},0]
[0,null,null,"Own Contributions","Miscellaneous",{"$nulls":5},0]
[0,null,null,"Own Contributions","Miscellaneous",{"$nulls":5},0]
[0,null,null,"Own Contributions","Miscellaneous",{"$nulls":5},0]
[0,null,null,"Own Contributions","Miscellaneous",{"$nulls":5},0]
[0,null,null,"Own Contributions","Miscellaneous",{"$nulls":5},0]
[0,null,null,"Own Contributions","Miscellaneous",{"$nulls":5},0]
[0,null,null,"Own Contributions","Miscellaneous",{"$nulls":5},0]
[0,null,null,"Own Contributions","Miscellaneous",{"$nulls":5},0]
[0,null,null,"Own Contributions","Miscellaneous",{"$nulls":5},0]
[0,null,null,"Own Contributions","Miscellaneous",{"$nulls":5},0]
[0,null,null,"Own Contributions","Miscellaneous",{"$nulls":5},0]
[0,null,null,"Own Contributions","Miscellaneous",{"$nulls":5},0]
[0,null,null,"Own Contributions","Miscellaneous",{"$nulls":5},0]
[0,null,null,"Own Contributions","Miscellaneous",{"$nulls":5},0]
[0,null,null,"Own Contributions","Miscellaneous",{"$nulls":5},0]
[0,null,null,"Own Contributions","Miscellaneous",{"$nulls":5},0]
[0,null,null,"Own Contributions","Miscellaneous",{"$nulls":5},0]
[0,null,null,"Own Contributions","Miscellaneous",{"$nulls":5},0]
[0,null,null,"Own Contributions","Miscellaneous",{"$nulls":5},0]
[0,null,null,"Own Contributions","Miscellaneous",{"$nulls":5},0]
[0,null,null,"Own Contributions","Miscellaneous",{"$nulls":5},0]
[0,null,null,"Own Contributions","Miscellaneous",{"$nulls":5},0]
[0,null,null,"Own Contributions","Miscellaneous",{"$nulls":5},0]
[0,null,null,"Own Contributions","Miscellaneous",{"$nulls":5},0]
[0,null,null,"Own Contributions","Miscellaneous",{"$nulls":5},{"$f":"J72*I72","v":0}]
[{"$f":"A72","v":0},null,null,"Own Contributions","Miscellaneous",{"$nulls":5},0]
[0,null,null,"Own Contributions","Miscellaneous",{"$nulls":5},0]
[0,null,null,"Own Contributions","Miscellaneous",{"$nulls":5},0]
[0,null,null,"Own Contributions","Miscellaneous",{"$nulls":5},0]
[0,null,null,"Own Contributions","Miscellaneous",{"$nulls":5},0]
[0,null,null,"Own Contributions","Miscellaneous",{"$nulls":5},0]
[0,null,null,"Own Contributions","Miscellaneous",{"$nulls":5},0]
[0,null,null,"Own Contributions","Miscellaneous",{"$nulls":5},0]
[0,null,null,"Own Contributions","Miscellaneous",{"$nulls":5},0]
[0,null,null,"Own Contributions","Miscellaneous",{"$nulls":5},0]
[0,null,null,"Own Contributions","Miscellaneous",{"$nulls":5},0]
[0,null,null,"Own Contributions","Miscellaneous",{"$nulls":5},0]
[0,null,null,"Own Contributions","Miscellaneous",{"$nulls":5},0]
[0,null,null,"Own Contributions","Miscellaneous",{"$nulls":5},0]
[0,null,null,"Own Contributions","Miscellaneous",{"$nulls":5},0]
[0,null,null,"Own Contributions","Miscellaneous",{"$nulls":5},0]
[0,null,null,"Own Contributions","Miscellaneous",{"$nulls":5},0]
[0,null,null,"Own Contributions","Miscellaneous",{"$nulls":5},0]
[0,null,null,"Own Contributions","Miscellaneous",{"$nulls":5},0]
[0,null,null,"Own Contributions","Miscellaneous",{"$nulls":5},0]
[0,null,null,"Own Contributions","Miscellaneous",{"$nulls":5},0]
[0,null,null,"Own Contributions","Miscellaneous",{"$nulls":5},0]
[0,null,null,"Own Contributions","Miscellaneous",{"$nulls":5},0]
[0,null,null,"Own Contributions","Miscellaneous",{"$nulls":5},0]
[0,null,null,"Own Contributions","Miscellaneous",{"$nulls":5},0]
[0,null,null,"Own Contributions","Miscellaneous",{"$nulls":5},0]
[0,null,null,"Own Contributions","Miscellaneous",{"$nulls":5},0]
[0,null,null,"Own Contributions","Miscellaneous",{"$nulls":5},0]
[0,null,null,"Own Contributions","Miscellaneous",{"$nulls":5},0]
[0,null,null,"Own Contributions","Miscellaneous",{"$nulls":5},0]
[0,null,null,"Own Contributions","Miscellaneous",{"$nulls":5},0]
[0,null,null,"Own Contributions","Miscellaneous",{"$nulls":5},0]
[0,null,null,"Own Contributions","Miscellaneous",{"$nulls":5},0]
[0,null,null,"Own Contributions","Miscellaneous",{"$nulls":5},0]
[0,null,null,"Own Contributions","Miscellaneous",{"$nulls":5},0]
[0,null,null,"Own Contributions","Miscellaneous",{"$nulls":5},0]
[0,null,null,"Own Contributions","Miscellaneous",{"$nulls":5},0]
[0,null,null,"Own Contributions","Miscellaneous",{"$nulls":5},0]
[0,null,null,"Own Contributions","Miscellaneous",{"$nulls":5},0]
[0,null,null,"Own Contributions","Miscellaneous",{"$nulls":5},0]
[0,null,null,"Own Contributions","Miscellaneous",{"$nulls":5},0]
[0,null,null,"Own Contributions","Miscellaneous",{"$nulls":5},0]
[0,null,null,"Own Contributions","Miscellaneous",{"$nulls":5},0]
[0,null,null,"Own Contributions","Miscellaneous",{"$nulls":5},0]
[0,null,null,"Own Contributions","Miscellaneous",{"$nulls":5},0]
[0,null,null,"Own Contributions","Miscellaneous",{"$nulls":5},0]
[0,null,null,"Own Contributions","Miscellaneous",{"$nulls":5},0]
[0,null,null,"Own Contributions","Miscellaneous",{"$nulls":5},0]
[0,null,null,"Own Contributions","Miscellaneous",{"$nulls":5},0]
[0,null,null,"Own Contributions","Miscellaneous",{"$nulls":5},0]
[0,null,null,"Own Contributions","Miscellaneous",{"$nulls":5},0]
[0,null,null,"Own Contributions","Miscellaneous",{"$nulls":5},0]
[0,null,null,"Own Contributions","Miscellaneous",{"$nulls":5},0]
[0,null,null,"Own Contributions","Miscellaneous",{"$nulls":5},0]
[0,null,null,"Own Contributions","Miscellaneous",{"$nulls":5},0]
[0,null,null,"Own Contributions","Miscellaneous",{"$nulls":5},0]
[0,null,null,"Own Contributions","Miscellaneous",{"$nulls":5},0]
[0,null,null,"Own Contributions","Miscellaneous",{"$nulls":5},0]
[0,null,null,"Own Contributions","Miscellaneous",{"$nulls":5},0]
[0,null,null,"Own Contributions","Miscellaneous",{"$nulls":5},0]
[0,null,null,"Own Contributions","Miscellaneous",{"$nulls":5},0]
[0,null,null,"Own Contributions","Miscellaneous",{"$nulls":5},0]
[0,null,null,"Own Contributions","Miscellaneous",{"$nulls":5},0]
[0,null,null,"Own Contributions","Miscellaneous",{"$nulls":5},{"$f":"J136*I136","v":0}]
[{"$f":"A136","v":0},null,null,"Own Contributions","Miscellaneous",{"$nulls":5},0]
[0,null,null,"Own Contributions","Miscellaneous",{"$nulls":5},0]
[0,null,null,"Own Contributions","Miscellaneous",{"$nulls":5},0]
[0,null,null,"Own Contributions","Miscellaneous",{"$nulls":5},0]
[0,null,null,"Own Contributions","Miscellaneous",{"$nulls":5},0]
[0,null,null,"Own Contributions","Miscellaneous",{"$nulls":5},0]
[0,null,null,"Own Contributions","Miscellaneous",{"$nulls":5},0]
[0,null,null,"Own Contributions","Miscellaneous",{"$nulls":5},0]
[0,null,null,"Own Contributions","Miscellaneous",{"$nulls":5},0]
[0,null,null,"Own Contributions","Miscellaneous",{"$nulls":5},0]
[0,null,null,"Own Contributions","Miscellaneous",{"$nulls":5},0]
[0,null,null,"Own Contributions","Miscellaneous",{"$nulls":5},0]
[0,null,null,"Own Contributions","Miscellaneous",{"$nulls":5},0]
[0,null,null,"Own Contributions","Miscellaneous",{"$nulls":5},0]
[0,null,null,"Own Contributions","Miscellaneous",{"$nulls":5},0]
[0,null,null,"Own Contributions","Miscellaneous",{"$nulls":5},0]
[0,null,null,"Own Contributions","Miscellaneous",{"$nulls":5},0]
[0,null,null,"Own Contributions","Miscellaneous",{"$nulls":5},0]
[0,null,null,"Own Contributions","Miscellaneous",{"$nulls":5},0]
[0,null,null,"Own Contributions","Miscellaneous",{"$nulls":5},0]
[0,null,null,"Own Contributions","Miscellaneous",{"$nulls":5},0]
[0,null,null,"Own Contributions","Miscellaneous",{"$nulls":5},0]
[0,null,null,"Own Contributions","Miscellaneous",{"$nulls":5},0]
[0,null,null,"Own Contributions","Miscellaneous",{"$nulls":5},0]
[0,null,null,"Own Contributions","Miscellaneous",{"$nulls":5},0]
[0,null,null,"Own Contributions","Miscellaneous",{"$nulls":5},0]
[0,null,null,"Own Contributions","Miscellaneous",{"$nulls":5},0]
[0,null,null,"Own Contributions","Miscellaneous",{"$nulls":5},0]
[0,null,null,"Own Contributions","Miscellaneous",{"$nulls":5},0]
[0,null,null,"Own Contributions","Miscellaneous",{"$nulls":5},0]
[0,null,null,"Own Contributions","Miscellaneous",{"$nulls":5},0]
[0,null,null,"Own Contributions","Miscellaneous",{"$nulls":5},0]
[0,null,null,"Own Contributions","Miscellaneous",{"$nulls":5},0]
[0,null,null,"Own Contributions","Miscellaneous",{"$nulls":5},0]
[0,null,null,"Own Contributions","Miscellaneous",{"$nulls":5},0]
[0,null,null,"Own Contributions","Miscellaneous",{"$nulls":5},0]
[0,null,null,"Own Contributions","Miscellaneous",{"$nulls":5},0]
[0,null,null,"Own Contributions","Miscellaneous",{"$nulls":5},0]
[0,null,null,"Own Contributions","Miscellaneous",{"$nulls":5},0]
[0,null,null,"Own Contributions","Miscellaneous",{"$nulls":5},0]
[0,null,null,"Own Contributions","Miscellaneous",{"$nulls":5},0]
[0,null,null,"Own Contributions","Miscellaneous",{"$nulls":5},0]
[0,null,null,"Own Contributions","Miscellaneous",{"$nulls":5},0]
[0,null,null,"Own Contributions","Miscellaneous",{"$nulls":5},0]
[0,null,null,"Own Contributions","Miscellaneous",{"$nulls":5},0]
[0,null,null,"Own Contributions","Miscellaneous",{"$nulls":5},0]
[0,null,null,"Own Contributions","Miscellaneous",{"$nulls":5},0]
[0,null,null,"Own Contributions","Miscellaneous",{"$nulls":5},0]
[0,null,null,"Own Contributions","Miscellaneous",{"$nulls":5},0]
[0,null,null,"Own Contributions","Miscellaneous",{"$nulls":5},0]
[0,null,null,"Own Contributions","Miscellaneous",{"$nulls":5},0]
[0,null,null,"Own Contributions","Miscellaneous",{"$nulls":5},0]
[0,null,null,"Own Contributions","Miscellaneous",{"$nulls":5},0]
[0,null,null,"Own Contributions","Miscellaneous",{"$nulls":5},0]
[0,null,null,"Own Contributions","Miscellaneous",{"$nulls":5},0]
[0,null,null,"Own Contributions","Miscellaneous",{"$nulls":5},0]
[0,null,null,"Own Contributions","Miscellaneous",{"$nulls":5},0]
[0,null,null,"Own Contributions","Miscellaneous",{"$nulls":5},0]
[0,null,null,"Own Contributions","Miscellaneous",{"$nulls":5},0]
[0,null,null,"Own Contributions","Miscellaneous",{"$nulls":5},0]
[0,null,null,"Own Contributions","Miscellaneous",{"$nulls":5},0]
[0,null,null,"Own Contributions","Miscellaneous",{"$nulls":5},0]
[0,null,null,"Own Contributions","Miscellaneous",{"$nulls":5},0]
[0,null,null,"Own Contributions","Miscellaneous",{"$nulls":5},{"$f":"J200*I200","v":0}]
[]
[{"$nulls":10},{"$f":"SUM(K7:K201)","v":0}]

{"sheet":"2nd Party Pers.","index":9,"n_rows":31,"n_cols":13,"rows_kept":31,"merged":[[1,4,1,7],[2,0,2,2],[3,0,3,6]]}
[]
["Second-Party Funds",null,null,"Project Titel:",{"$f":"Consolidation!F5","v":0}]
["Personnel",null,null,"SystX.ch int.ref.:",{"$f":"Consolidation!F14","v":0}]
["Please provide details for ALL personnel involved in the project paid with 2nd party funds, and not simply totals per group"]
[]
[null,{"$f":"L31","v":0}]
["Project","Institution/\nFunding Agency","Research Group","Funding Category","Cost Type","Name ","Internal Reference/ Personnel Number","Function (of the Personnel)","Base Salary / Cost 2017","% for SysX.ch  2017","Number of months employed","Total CHF 2017","Comments"]
[{"$f":"E2","v":0},null,null,"2nd Party ","Personnel",{"$nulls":6},{"$f":"I8*J8/12*K8","v":0}]
[{"$f":"A8","v":0},null,null,"2nd Party ","Personnel",{"$nulls":6},0]
[{"$f":"A9","v":0},null,null,"2nd Party ","Personnel",{"$nulls":6},0]
[0,null,null,"2nd Party ","Personnel",{"$nulls":6},0]
[0,null,null,"2nd Party ","Personnel",{"$nulls":6},0]
[0,null,null,"2nd Party ","Personnel",{"$nulls":6},0]
[0,null,null,"2nd Party ","Personnel",{"$nulls":6},0]
[0,null,null,"2nd Party ","Personnel",{"$nulls":6},0]
[0,null,null,"2nd Party ","Personnel",{"$nulls":6},0]
[0,null,null,"2nd Party ","Personnel",{"$nulls":6},0]
[0,null,null,"2nd Party ","Personnel",{"$nulls":6},0]
[0,null,null,"2nd Party ","Personnel",{"$nulls":6},0]
[0,null,null,"2nd Party ","Personnel",{"$nulls":6},0]
[0,null,null,"2nd Party ","Personnel",{"$nulls":6},0]
[0,null,null,"2nd Party ","Personnel",{"$nulls":6},0]
[0,null,null,"2nd Party ","Personnel",{"$nulls":6},0]
[0,null,null,"2nd Party ","Personnel",{"$nulls":6},0]
[0,null,null,"2nd Party ","Personnel",{"$nulls":6},0]
[0,null,null,"2nd Party ","Personnel",{"$nulls":6},0]
[0,null,null,"2nd Party ","Personnel",{"$nulls":6},0]
[0,null,null,"2nd Party ","Personnel",{"$nulls":6},0]
[0,null,null,"2nd Party ","Personnel",{"$nulls":6},0]
[]
[{"$nulls":11},{"$f":"SUM(L8:L30)","v":0}]

{"sheet":"2nd Party Equip. & Cons. & Misc","index":10,"n_rows":22,"n_cols":9,"rows_kept":22,"merged":[[3,0,3,2]]}
[]
["Second-Party Funds",null,"Project Titel:",{"$f":"Consolidation!F5","v":0}]
["(e.g. SNSF, CTI, EU, NIH)",null,"SystX.ch int.ref.:",{"$f":"Consolidation!F14","v":0}]
["Equipment, consumables, miscellaneous"]
[]
[null,{"$f":"H22","v":{"v":0,"d":"0.00"}}]
[]
["Please, send a copy of the contract(s) between your institution and the second-party to SystemsX.ch."]
[]
[{"$nulls":6},"to be delivered by the (co-)PI"]
["Funding Agency","Project Title","Duration (from … to ...)","Research Group (PI)","Total approved funds","Funds Used in 2017","% eligible for  SysX.ch Proj","CHF 2nd Party Funds 2017","Remark, Note"]
[{"$nulls":7},{"$f":"G12*F12","v":{"v":0,"d":"0.00"}}]
[{"$nulls":7},{"$f":"G13*F13","v":{"v":0,"d":"0.00"}}]
[{"$nulls":7},{"v":0,"d":"0.00"}]
[{"$nulls":7},{"v":0,"d":"0.00"}]
[{"$nulls":7},{"v":0,"d":"0.00"}]
[{"$nulls":7},{"v":0,"d":"0.00"}]
[{"$nulls":7},{"v":0,"d":"0.00"}]
[{"$nulls":7},{"v":0,"d":"0.00"}]
[{"$nulls":7},{"v":0,"d":"0.00"}]
[{"$nulls":7},{"$f":"G21*F21","v":{"v":0,"d":"0.00"}}]
[{"$nulls":6},"TOTAL Second-Party Funds: ",{"$f":"SUM(H12:H21)","v":{"v":0,"d":"0.00"}}]

{"sheet":"3rd Party Pers.","index":11,"n_rows":31,"n_cols":13,"rows_kept":31,"merged":[[1,4,1,7],[2,0,2,2],[3,0,3,6]]}
[]
["Third-Party Funds",null,null,"Project Titel:",{"$f":"Consolidation!F5","v":0}]
["Personnel",null,null,"SystX.ch int.ref.:",{"$f":"Consolidation!F14","v":0}]
["Please provide details for ALL personnel involved in the project paid with 3rd party funds, and not simply totals per group"]
[]
[null,{"$f":"L31","v":0}]
["Project","Institution/\nFunding Agency","Research Group","Funding Category","Cost Type","Name ","Internal Reference/ Personnel Number","Function (of the Personnel)","Base Salary / Cost 2017","% for SysX.ch  2017","Number of months employed","Total CHF 2017","Comments"]
[{"$f":"E2","v":0},null,null,"3rd Party ","Personnel",{"$nulls":6},{"$f":"I8*J8/12*K8","v":0}]
[{"$f":"A8","v":0},null,null,"3rd Party ","Personnel",{"$nulls":6},0]
[{"$f":"A9","v":0},null,null,"3rd Party ","Personnel",{"$nulls":6},0]
[0,null,null,"3rd Party ","Personnel",{"$nulls":6},0]
[0,null,null,"3rd Party ","Personnel",{"$nulls":6},0]
[0,null,null,"3rd Party ","Personnel",{"$nulls":6},0]
[0,null,null,"3rd Party ","Personnel",{"$nulls":6},0]
[0,null,null,"3rd Party ","Personnel",{"$nulls":6},0]
[0,null,null,"3rd Party ","Personnel",{"$nulls":6},0]
[0,null,null,"3rd Party ","Personnel",{"$nulls":6},0]
[0,null,null,"3rd Party ","Personnel",{"$nulls":6},0]
[0,null,null,"3rd Party ","Personnel",{"$nulls":6},0]
[0,null,null,"3rd Party ","Personnel",{"$nulls":6},0]
[0,null,null,"3rd Party ","Personnel",{"$nulls":6},0]
[0,null,null,"3rd Party ","Personnel",{"$nulls":6},0]
[0,null,null,"3rd Party ","Personnel",{"$nulls":6},0]
[0,null,null,"3rd Party ","Personnel",{"$nulls":6},0]
[0,null,null,"3rd Party ","Personnel",{"$nulls":6},0]
[0,null,null,"3rd Party ","Personnel",{"$nulls":6},0]
[0,null,null,"3rd Party ","Personnel",{"$nulls":6},0]
[0,null,null,"3rd Party ","Personnel",{"$nulls":6},0]
[0,null,null,"3rd Party ","Personnel",{"$nulls":6},0]
[]
[{"$nulls":11},{"$f":"SUM(L8:L30)","v":0}]

{"sheet":"3rd Party Equip. & Cons. & Misc","index":12,"n_rows":22,"n_cols":9,"rows_kept":22,"merged":[[3,0,3,2]]}
[]
["Third-Party Funds",null,"Project Titel:",{"$f":"Consolidation!F5","v":0}]
["(e.g. industry, SME)",null,"SystX.ch int.ref.:",{"$f":"Consolidation!F14","v":0}]
["Equipment, consumables, miscellaneous"]
[]
[null,{"$f":"H22","v":{"v":0,"d":"0.00"}}]
[]
["Please, send a copy of the contract(s) between your institution and the thrid-party to SystemsX.ch."]
[]
[{"$nulls":6},"to be delivered by the (co-)PI"]
["Funding Agency","Project Title","Duration (from … to ...)","Research Group (PI)","Total approved funds","Funds Used in 2017","% eligible for  SysX.ch Proj","CHF 3rd Party Funds 2017","Remark, Note"]
[{"$nulls":7},{"$f":"G12*F12","v":{"v":0,"d":"0.00"}}]
[{"$nulls":7},{"$f":"G13*F13","v":{"v":0,"d":"0.00"}}]
[{"$nulls":7},{"v":0,"d":"0.00"}]
[{"$nulls":7},{"v":0,"d":"0.00"}]
[{"$nulls":7},{"v":0,"d":"0.00"}]
[{"$nulls":7},{"v":0,"d":"0.00"}]
[{"$nulls":7},{"v":0,"d":"0.00"}]
[{"$nulls":7},{"v":0,"d":"0.00"}]
[{"$nulls":7},{"v":0,"d":"0.00"}]
[{"$nulls":7},{"v":0,"d":"0.00"}]
[{"$nulls":6},"TOTAL Third-Party Funds: ",{"$f":"SUM(H12:H21)","v":{"v":0,"d":"0.00"}}]

{"sheet":"Tables","index":13,"n_rows":43,"n_cols":6,"rows_kept":43}
["Function:","CHF"]
["Professor",{"v":270000,"d":"270,000"}]
["Assistant Professor",{"v":200000,"d":"200,000"}]
["Senior Researcher",{"v":170000,"d":"170,000"}]
["PostDoc",{"v":130000,"d":"130,000"}]
["Technician",{"v":130000,"d":"130,000"}]
["PhD student",{"v":60000,"d":"60,000"}]
["Scientific Assistant",{"v":110000,"d":"110,000"}]
["Admin/ Misc.",{"v":90000,"d":"90,000"}]
[]
["Institute",null,"Cost Category",null,"Type","Type2"]
["EPFL",null,"SystemsX.ch",null,null,"Equipment"]
["ETHZ",null,"Own Contributions",null,"Consumables","Exist. Infrastr."]
["FMI",{"$nulls":3},"Miscellaneous"]
["IBM Research"]
["KantSpit_SG"]
["PSI"]
["SIB",{"$nulls":3},"Type3","Type4"]
["UniBE",{"$nulls":3},"OC Personnel","Consumables"]
["UniBS",{"$nulls":4},"Miscellaneous"]
["UniBS_Spit"]
["UniBS_TPH"]
["UniFR"]
["UniGE"]
["UniL"]
["UniL_CHUV"]
["UniNE"]
["USI"]
["UZH"]
["UZH_Spit"]
["ZHAW"]
[]
[]
[]
["Function:"]
["Professor"]
["Assistant Professor"]
["Senior Researcher"]
["PostDoc"]
["Technician"]
["PhD student"]
["Scientific Assistant"]
["Admin/ Misc."]